{"text_format":"1","workbook":"xlsx","n_sheets":29,"sheets":["List of tables","AA-Entitlement time series","AA-In payment time series","AA-Gender","AA-Time in Receipt","AA–Age Distribution","AA-Qualifying Conditions","AA-Mobility and Care Element","DLA-Entitlement time series","DLA-Gender","DLA-In payment time series","DLA-Time in Receipt","DLA–Age Distribution","DLA-Qualifying Conditions","DLA-Mobility and Care Element","CA-Payment type by age","CA-Duration by age","CA- LA by duration","CA- LA by age","CA- LA by gender","CA-client type","CA-Gender","SDA-Claimant Count","SDA-Gender","SDA-Qualifying","Carer's Allowance","Disablity Living Allowance","Attendance Allowance","Severe Disablement Allowance"],"not_rendered":{"charts":22,"images":5,"macros":1,"external_links":1,"defined_names":1968,"comments":0,"pivot_tables":0},"unopened":[],"bounds":{"document_bytes":16777216,"sheet_cells":100000,"rows_first":2000,"rows_last":500,"rows_between":2000,"halvings":0,"cell_chars":16384,"cell_head_chars":4096},"cells_cut":0,"cells_raw":0,"read":"whole","date_system":"1900"}

{"sheet":"List of tables","index":0,"n_rows":23,"n_cols":6,"rows_kept":23,"cut":false,"hidden":false,"merged":[]}
["All table for Scotland only"]
[]
["Sheet","Dataset","Filter","Row data field","Column data field","Nested column data field"]
["AA-Entitlement time series","AA cases with entitlement","Geography - Scotland","Quarter","NA","NA"]
["AA-In payment time series","AA cases in payment","Geography - Scotland","Quarter","NA","NA"]
["AA-Gender","AA cases in payment","Geography - Scotland","Gender","NA","NA"]
["AA-Time in Receipt","AA cases in payment","Geography - Scotland","Duration of current claim","NA","NA"]
["AA–Age Distribution","AA cases in payment","Geography - Scotland","Age (bands)","NA","NA"]
["AA-Qualifying Conditions","AA cases in payment","Geography - Scotland","Main disabling condition","NA","NA"]
["AA-Mobility and Care Element","AA cases in payment","Geography - Scotland","AA award type","NA","NA"]
["DLA-Entitlement time series","DLA cases with entitlement","Geography - Scotland","Quarter","NA","NA"]
["DLA-In payment time series","DLA cases in payment","Geography - Scotland","Quarter","NA","NA"]
["DLA-Gender","DLA cases in payment","Geography - Scotland","Gender","NA","NA"]
["DLA-Time in Receipt","DLA cases in payment","Geography - Scotland","Duration of current claim","NA","NA"]
["DLA–Age Distribution","DLA cases in payment","Geography - Scotland","Age (bands)","NA","NA"]
["DLA-Qualifying Conditions","DLA cases in payment","Geography - Scotland","Main disabling condition","NA","NA"]
["DLA-Mobility and Care Element","DLA cases in payment","Geography - Scotland","Care award type","Mobility award type","NA"]
["Carers-Entitlement by Age time series","CA cases with entitlement","Geography - Scotland","Age (bands)","Payment type","Quarter"]
["Carers-Gender","CA cases in payment","Geography - Scotland","Gender","NA","NA"]
["Carers-Age by duration","CA cases in payment","Geography - Scotland","Duration of current claim","Age (bands)","NA"]
["SDA-Claimant Count","IB and SDA","Geography - Scotland\nBenefit combination - SDA","Quarter","NA","NA"]
["SDA-Gender","IB and SDA","Geography - Scotland\nBenefit combination - SDA","Gender","NA","NA"]
["SDA-Qualifying","IB and SDA","Geography - Scotland\nBenefit combination - SDA","Medical condition","NA","NA"]

{"sheet":"AA-Entitlement time series","index":1,"n_rows":16,"n_cols":11,"rows_kept":16,"cut":false,"hidden":false,"merged":[[7,1,7,8],[7,9,7,16]]}
["Quarter by National - Regional - LA - OAs"]
["Filters:"]
[" National - Regional - LA - OAs"," : Scotland"]
["Default Summation"," : AA (entitled) - 2011 Geographies"]
[]
["Wafers:"]
["Cell count: 8 (8 x 1 x 1) total."]
[]
["Quarter","May-18","Aug-18","Nov-18","Feb-19","May-19","Aug-19","Nov-19","Feb-20","May-20","Aug-20"]
[null,145091,146201,146648,146054,146578,147775,148113,147725,143092,142308]
[]
["INFO: Statistical disclosure control has been applied to this table to avoid the release of confidential data. Totals may not sum due to the disclosure control applied."]
[" Annotation Descriptions"]
["Symbol","Description"]
["I","The move to publishing benefit data via the Stat-Xplore instead of the DWP Tabulation Tool has involved adopting a new disclosure control methodology, in line with other benefits published via this new tool. Although the data still comes from the same source there may be small differences in the outputs displayed using this new tool, when compared to the Tabulation Tool."]
["II","\"..\" denotes a nil or negligible number of claimants or award amount based on a nil or negligible number of claimants."]

{"sheet":"AA-In payment time series","index":2,"n_rows":18,"n_cols":11,"rows_kept":18,"cut":false,"hidden":false,"merged":[]}
["AA Cases In Payment (I\nII)",null,null,null,null,null,null,null,null,"Contents"]
["Quarter by National - Regional - LA - OAs"]
["Counting: AA (in payment)"]
[]
["Filters:"]
["Default Summation","AA (in payment)"]
["National - Regional - LA - OAs","Scotland"]
[]
["Quarter","May-18","Aug-18","Nov-18","Feb-19","May-19","Aug-19","Nov-19","Feb-20","May-20","Aug-20"]
[null,125501,126200,127234,127193,127101,126987,127307,127751,127303,126291]
[]
[]
["INFO","Statistical disclosure control has been applied to this table to avoid the release of confidential data.  Totals may not sum due to the disclosure control applied."]
["Symbol","Description"]
[]
["I","The move to publishing benefit data via the Stat-Xplore instead of the DWP Tabulation Tool has involved adopting a new disclosure control methodology, in line with other benefits published via this new tool. Although the data still comes from the same source there may be small differences in the outputs displayed using this new tool, when compared to the Tabulation Tool."]
["II","\"..\" denotes a nil or negligible number of claimants or award amount based on a nil or negligible number of claimants."]
["Source: Department for Work and Pensions"]

{"sheet":"AA-Gender","index":3,"n_rows":21,"n_cols":4,"rows_kept":21,"cut":false,"hidden":false,"merged":[[8,0,8,1]]}
["AA Cases In Payment (I\nII)",null,null,"Contents"]
["Gender by Quarter by National - Regional - LA - OAs"]
["Counting: AA (in payment)"]
[]
["Filters:"]
["Default Summation","AA (in payment)"]
["National - Regional - LA - OAs","Scotland"]
[]
["Quarter",null,"Aug-20"]
[null,"Gender"]
[null,"Male",47196]
[null,"Female",79096]
[null,"Unknown",".."]
[null,"Total",126291]
[]
[]
["INFO","Statistical disclosure control has been applied to this table to avoid the release of confidential data.  Totals may not sum due to the disclosure control applied."]
["Symbol","Description"]
[]
["I","The move to publishing benefit data via the Stat-Xplore instead of the DWP Tabulation Tool has involved adopting a new disclosure control methodology, in line with other benefits published via this new tool. Although the data still comes from the same source there may be small differences in the outputs displayed using this new tool, when compared to the Tabulation Tool."]
["II","\"..\" denotes a nil or negligible number of claimants or award amount based on a nil or negligible number of claimants."]

{"sheet":"AA-Time in Receipt","index":4,"n_rows":23,"n_cols":4,"rows_kept":23,"cut":false,"hidden":false,"merged":[[8,0,8,1]]}
["AA Cases In Payment",null,null,"Contents"]
["Duration of Current Claim by Quarter by National - Regional - LA - OAs"]
["Counting: AA (in payment)"]
[]
["Filters:"]
["Default Summation","AA (in payment)"]
["National - Regional - LA - OAs","Scotland"]
[]
["Quarter",null,"Aug-20"]
[null,"Duration of Current Claim"]
[null,"Up to 3 months",3302]
[null,"3 months up to 6 months",3043]
[null,"6 months up to 1 year",10991]
[null,"1 year and up to 2 years",18799]
[null,"2 years and up to 5 years",38317]
[null,"5 years and over",51831]
[null,"Unknown",".."]
[null,"Total",126291]
[]
["Symbol","Description"]
[]
["I","The move to publishing benefit data via the Stat-Xplore instead of the DWP Tabulation Tool has involved adopting a new disclosure control methodology, in line with other benefits published via this new tool. Although the data still comes from the same source there may be small differences in the outputs displayed using this new tool, when compared to the Tabulation Tool."]
["II","\"..\" denotes a nil or negligible number of claimants or award amount based on a nil or negligible number of claimants."]

{"sheet":"AA–Age Distribution","index":5,"n_rows":23,"n_cols":4,"rows_kept":23,"cut":false,"hidden":false,"merged":[[23,1,23,1],[8,0,8,1]]}
["AA Cases In Payment",null,null,"Contents"]
["Age (bands and single year) by Quarter by National - Regional - LA - OAs"]
["Counting: AA (in payment)"]
[]
["Filters:"]
["Default Summation","AA (in payment)"]
["National - Regional - LA - OAs","Scotland"]
[]
["Quarter",null,"Aug-20"]
[null,"Age (bands and single year)"]
[null,"65-69",6045]
[null,"70-74",19359]
[null,"75-79",24836]
[null,"80-84",31063]
[null,"85-89",26807]
[null,"90 and over",18182]
[null,"Unknown",".."]
[null,"Total",126291]
[]
["Symbol","Description"]
[]
["I","The move to publishing benefit data via the Stat-Xplore instead of the DWP Tabulation Tool has involved adopting a new disclosure control methodology, in line with other benefits published via this new tool. Although the data still comes from the same source there may be small differences in the outputs displayed using this new tool, when compared to the Tabulation Tool."]
["II","\"..\" denotes a nil or negligible number of claimants or award amount based on a nil or negligible number of claimants."]

{"sheet":"AA-Qualifying Conditions","index":6,"n_rows":71,"n_cols":7,"rows_kept":71,"cut":false,"hidden":false,"merged":[[8,0,8,1]]}
["AA Cases In Payment",null,null,"Contents"]
["Main Disabling Condition by Quarter by National - Regional - LA - OAs"]
["Counting: AA (in payment)"]
[]
["Filters:"]
["Default Summation","AA (in payment)"]
["National - Regional - LA - OAs","Scotland"]
[]
["Quarter",null,"Aug-20"]
[null,"Main Disabling Condition (III)"]
[null,"Arthritis",36998,null,"Hyperkinetic Syndrome",".."]
[null,"Spondylosis",1366,null,"Severely Mentally impaired",".."]
[null,"Back Pain - Other / Precise Diagnosis not Specified",4611,null,"Double Amputee",".."]
[null,"Disease Of The Muscles, Bones or Joints",6852,null,"Deaf/Blind",".."]
[null,"Trauma to Limbs",1559,null,"Total Parenteral Nutrition",".."]
[null,"Blindness",4085,null,"Infectious diseases: Bacterial disease - precise diagnosis not specified",".."]
[null,"Deafness",631,null,"Infectious diseases: Protozoal disease - Malaria",".."]
[null,"Heart Disease",9016,null,"Infectious diseases: Protozoal disease - other / precise diagnosis not specified",".."]
[null,"Chest Disease",8920,null,"Arthritis",36998]
[null,"Asthma",569,null,"Unknown",11299]
[null,"Cystic Fibrosis",5,null,"Dementia",9892]
[null,"Cerebrovascular Disease",6822,null,"Heart Disease",9016]
[null,"Peripheral vascular Disease",977,null,"Chest Disease",8920]
[null,"Epilepsy",257,null,"Disease Of The Muscles, Bones or Joints",6852]
[null,"Neurological Diseases",2408,null,"Cerebrovascular Disease",6822]
[null,"Multiple Sclerosis",230,null,"Malignant Disease",4881]
[null,"Parkinsons Disease",2711,null,"Back Pain - Other / Precise Diagnosis not Specified",4611]
[null,"Motor Neurone Disease",55,null,"Blindness",4085,{"$f":"SUM(F29:F65)","v":22904}]
[null,"Chronic Pain Syndromes",341,null,"Terminally Ill",2957]
[null,"Diabetes Mellitus",1271,null,"Parkinsons Disease",2711]
[null,"Metabolic Disease",126,null,"Neurological Diseases",2408]
[null,"Traumatic Paraplegia/Tetraplegia",36,null,"Trauma to Limbs",1559]
[null,"Major Trauma Other than Traumatic Paraplegia/Tetraplegia",162,null,"Spondylosis",1366]
[null,"Learning Difficulties",116,null,"Cognitive disorder - other / precise diagnosis not specified",1323]
[null,"Psychosis",1181,null,"Diabetes Mellitus",1271]
[null,"Psychoneurosis",834,null,"Psychosis",1181]
[null,"Personality Disorder",13,null,"Renal Disorders",1029]
[null,"Dementia",9892,null,"Peripheral vascular Disease",977]
[null,"Behavioral Disorder",33,null,"Psychoneurosis",834]
[null,"Alcohol and Drug Abuse",353,null,"Deafness",631]
[null,"Hyperkinetic Syndrome","..",null,"Multi System Disorders",588]
[null,"Renal Disorders",1029,null,"Frailty",577]
[null,"Inflammatory Bowel Disease",179,null,"Asthma",569]
[null,"Bowel and Stomach Disease",559,null,"Bowel and Stomach Disease",559]
[null,"Blood Disorders",154,null,"Alcohol and Drug Abuse",353]
[null,"Haemophilia",12,null,"Chronic Pain Syndromes",341]
[null,"AIDS",6,null,"Epilepsy",257]
[null,"Multi System Disorders",588,null,"Skin Disease",242]
[null,"Multiple Allergy Syndrome",5,null,"Multiple Sclerosis",230]
[null,"Skin Disease",242,null,"Inflammatory Bowel Disease",179]
[null,"Malignant Disease",4881,null,"Major Trauma Other than Traumatic Paraplegia/Tetraplegia",162]
[null,"Severely Mentally impaired","..",null,"Blood Disorders",154]
[null,"Double Amputee","..",null,"Metabolic Disease",126]
[null,"Deaf/Blind","..",null,"Learning Difficulties",116]
[null,"Haemodialysis",8,null,"Motor Neurone Disease",55]
[null,"Frailty",577,null,"Traumatic Paraplegia/Tetraplegia",36]
[null,"Total Parenteral Nutrition","..",null,"Behavioral Disorder",33]
[null,"Infectious diseases: Bacterial disease - Tuberculosis",14,null,"Infectious diseases - other / precise diagnosis not specified",17]
[null,"Infectious diseases: Bacterial disease - precise diagnosis not specified","..",null,"Infectious diseases: Bacterial disease - Tuberculosis",14]
[null,"Infectious diseases: Protozoal disease - Malaria","..",null,"Personality Disorder",13]
[null,"Infectious diseases: Protozoal disease - other / precise diagnosis not specified","..",null,"Haemophilia",12]
[null,"Infectious diseases - other / precise diagnosis not specified",17,null,"Haemodialysis",8]
[null,"Cognitive disorder - other / precise diagnosis not specified",1323,null,"AIDS",6]
[null,"Terminally Ill",2957,null,"Cystic Fibrosis",5]
[null,"Unknown",11299,null,"Multiple Allergy Syndrome",5]
[null,"Total",126291]
[]
["Symbol","Description"]
[]
["I","The move to publishing benefit data via the Stat-Xplore instead of the DWP Tabulation Tool has involved adopting a new disclosure control methodology, in line with other benefits published via this new tool. Although the data still comes from the same source there may be small differences in the outputs displayed using this new tool, when compared to the Tabulation Tool."]
["II","\"..\" denotes a nil or negligible number of claimants or award amount based on a nil or negligible number of claimants."]

{"sheet":"AA-Mobility and Care Element","index":7,"n_rows":19,"n_cols":4,"rows_kept":19,"cut":false,"hidden":false,"merged":[[8,0,8,1]]}
["AA Cases In Payment",null,null,"Contents"]
["AA Award Type by Quarter by National - Regional - LA - OAs"]
["Counting: AA (in payment)"]
[]
["Filters:"]
["Default Summation","AA (in payment)"]
["National - Regional - LA - OAs","Scotland"]
[]
["Quarter",null,"Aug-20"]
[null,"AA Award Type"]
[null,"Lower Rate",44215]
[null,"Higher Rate",82079]
[null,"Nil Rate",".."]
[null,"Total",126291]
[]
["Symbol","Description"]
[]
["I","The move to publishing benefit data via the Stat-Xplore instead of the DWP Tabulation Tool has involved adopting a new disclosure control methodology, in line with other benefits published via this new tool. Although the data still comes from the same source there may be small differences in the outputs displayed using this new tool, when compared to the Tabulation Tool."]
["II","\"..\" denotes a nil or negligible number of claimants or award amount based on a nil or negligible number of claimants."]

{"sheet":"DLA-Entitlement time series","index":8,"n_rows":17,"n_cols":11,"rows_kept":17,"cut":false,"hidden":false,"merged":[[8,2,8,9],[8,10,8,17]]}
["Quarter by National - Regional - LA - OAs"]
["Filters:"]
[" National - Regional - LA - OAs"]
[" : Scotland"]
["Default Summation"]
[" : DLA (entitled) - 2011 Geographies"]
["Wafers:"]
["Cell count: 8 (8 x 1 x 1) total."]
[]
["Quarter",null,"Aug-18","Nov-18","Feb-19","May-19","Aug-19","Nov-19","Feb-20","May-20","Aug-20"]
[null,null,196967,188444,184025,179111,174107,166521,157830,149541,148364]
["For further information see Data Confidentiality"]
["INFO: Statistical disclosure control has been applied to this table to avoid the release of confidential data. Totals may not sum due to the disclosure control applied."]
[" Annotation Descriptions"]
["Symbol","Description"]
["I","The move to publishing benefit data via the Stat-Xplore instead of the DWP Tabulation Tool has involved adopting a new disclosure control methodology, in line with other benefits published via this new tool. Although the data still comes from the same source there may be small differences in the outputs displayed using this new tool, when compared to the Tabulation Tool."]
["III","\"..\" denotes a nil or negligible number of claimants or award amount based on a nil or negligible number of claimants."]

{"sheet":"DLA-Gender","index":9,"n_rows":22,"n_cols":4,"rows_kept":22,"cut":false,"hidden":false,"merged":[[8,0,8,1]]}
["DLA Cases In Payment (I\nIII)",null,null,"Contents"]
["Gender by Quarter by National - Regional - LA - OAs"]
["Counting: DLA (in payment)"]
[]
["Filters:"]
["Default Summation","DLA (in payment)"]
["National - Regional - LA - OAs (II)","Scotland"]
[]
["Quarter",null,"Aug-20"]
[null,"Gender"]
[null,"Male",77073]
[null,"Female",69826]
[null,"Unknown",".."]
[null,"Total",146895]
[]
[]
["INFO","Statistical disclosure control has been applied to this table to avoid the release of confidential data.  Totals may not sum due to the disclosure control applied."]
["Symbol","Description"]
[]
["I","The move to publishing benefit data via the Stat-Xplore instead of the DWP Tabulation Tool has involved adopting a new disclosure control methodology, in line with other benefits published via this new tool. Although the data still comes from the same source there may be small differences in the outputs displayed using this new tool, when compared to the Tabulation Tool."]
["III","\"..\" denotes a nil or negligible number of claimants or award amount based on a nil or negligible number of claimants."]
["II","Between May 2007 to November 2007 location information for some claimants is unavailable, causing a slight rise in the number of unknown geographies. Statistics for this period which show geography information should therefore be interpreted with care."]

{"sheet":"DLA-In payment time series","index":10,"n_rows":19,"n_cols":10,"rows_kept":19,"cut":false,"hidden":false,"merged":[]}
["DLA Cases In Payment (I\nIII)",null,null,null,"Contents"]
["Quarter by National - Regional - LA - OAs"]
["Counting: DLA (in payment)"]
[]
["Filters:"]
["Default Summation","DLA (in payment)"]
["National - Regional - LA - OAs (II)","Scotland"]
[]
["Quarter","Aug-18","Nov-18","Feb-19","May-19","Aug-19","Nov-19","Feb-20","May-20","Aug-20"]
["dla",194992,186577,182154,177291,172294,164774,156174,148030,146895]
[]
[]
["INFO","Statistical disclosure control has been applied to this table to avoid the release of confidential data.  Totals may not sum due to the disclosure control applied."]
["Symbol","Description"]
[]
["I","The move to publishing benefit data via the Stat-Xplore instead of the DWP Tabulation Tool has involved adopting a new disclosure control methodology, in line with other benefits published via this new tool. Although the data still comes from the same source there may be small differences in the outputs displayed using this new tool, when compared to the Tabulation Tool."]
["III","\"..\" denotes a nil or negligible number of claimants or award amount based on a nil or negligible number of claimants."]
["II","Between May 2007 to November 2007 location information for some claimants is unavailable, causing a slight rise in the number of unknown geographies. Statistics for this period which show geography information should therefore be interpreted with care."]
["Source: Department for Work and Pensions"]

{"sheet":"DLA-Time in Receipt","index":11,"n_rows":24,"n_cols":5,"rows_kept":24,"cut":false,"hidden":false,"merged":[[8,0,8,1]]}
["DLA Cases In Payment",null,null,null,"Contents"]
["Duration of Current Claim by Quarter by National - Regional - LA - OAs"]
["Counting: DLA (in payment)"]
[]
["Filters:"]
["Default Summation","DLA (in payment)"]
["National - Regional - LA - OAs","Scotland"]
[]
["Quarter",null,"Aug-20"]
[null,"Duration of Current Claim"]
[null,"Up to 3 months",1037]
[null,"3 months up to 6 months",995]
[null,"6 months up to 1 year",3349]
[null,"1 year and up to 2 years",6358]
[null,"2 years and up to 5 years",14541]
[null,"5 years and over",120623]
[null,"Unknown",".."]
[null,"Total",146895]
[]
["Symbol","Description"]
[]
["I","The move to publishing benefit data via the Stat-Xplore instead of the DWP Tabulation Tool has involved adopting a new disclosure control methodology, in line with other benefits published via this new tool. Although the data still comes from the same source there may be small differences in the outputs displayed using this new tool, when compared to the Tabulation Tool."]
["III","\"..\" denotes a nil or negligible number of claimants or award amount based on a nil or negligible number of claimants."]
["II","Between May 2007 to November 2007 location information for some claimants is unavailable, causing a slight rise in the number of unknown geographies. Statistics for this period which show geography information should therefore be interpreted with care."]

{"sheet":"DLA–Age Distribution","index":12,"n_rows":39,"n_cols":5,"rows_kept":39,"cut":false,"hidden":false,"merged":[[8,0,8,1]]}
["DLA Cases In Payment (I\nIII)",null,null,null,"Contents"]
["Age (bands and single year) by Quarter by National - Regional - LA - OAs"]
["Counting: DLA (in payment)"]
[]
["Filters:"]
["Default Summation","DLA (in payment)"]
["National - Regional - LA - OAs (II)","Scotland"]
[]
["Quarter",null,"Aug-20"]
[null,"Age (bands and single year)"]
[null,"Under 5",3961]
[null,"5 to 10",18592]
[null,"11 to 15",19258]
[null,"16 to 17",2705]
[null,"18 to 24",1227]
[null,"25 to 29",2540]
[null,"30 to 34",2540]
[null,"35 to 39",2366]
[null,"40 to 44",2611]
[null,"45 to 49",3627]
[null,"50 to 54",5436]
[null,"55 to 59",7054]
[null,"60 to 64",8158]
[null,"65 to 69",9002]
[null,"70 to 74",18757]
[null,"75 to 79",20768]
[null,"80 to 84",12410]
[null,"85 to 89",4882]
[null,"90 and over",1007]
[null,"Unknown/Missing",".."]
[null,"Total",146895]
[]
[]
["INFO","Statistical disclosure control has been applied to this table to avoid the release of confidential data.  Totals may not sum due to the disclosure control applied."]
["Symbol","Description"]
[]
["I","The move to publishing benefit data via the Stat-Xplore instead of the DWP Tabulation Tool has involved adopting a new disclosure control methodology, in line with other benefits published via this new tool. Although the data still comes from the same source there may be small differences in the outputs displayed using this new tool, when compared to the Tabulation Tool."]
["III","\"..\" denotes a nil or negligible number of claimants or award amount based on a nil or negligible number of claimants."]
["II","Between May 2007 to November 2007 location information for some claimants is unavailable, causing a slight rise in the number of unknown geographies. Statistics for this period which show geography information should therefore be interpreted with care."]

{"sheet":"DLA-Qualifying Conditions","index":13,"n_rows":74,"n_cols":9,"rows_kept":74,"cut":false,"hidden":false,"merged":[[8,0,8,1]]}
["DLA Cases In Payment (I\nIII)",null,null,null,"Contents"]
["Main Disabling Condition by Quarter by National - Regional - LA - OAs"]
["Counting: DLA (in payment)"]
[]
["Filters:"]
["Default Summation","DLA (in payment)"]
["National - Regional - LA - OAs (II)","Scotland"]
[]
["Quarter",null,"Aug-20",null,null,"Infectious diseases: Bacterial disease - precise diagnosis not specified",".."]
[null,"Main Disabling Condition",null,null,null,"Infectious diseases: Protozoal disease - Malaria",".."]
[null,"Arthritis",25966,null,null,"Infectious diseases: Protozoal disease - other / precise diagnosis not specified",".."]
[null,"Spondylosis",2755,null,null,"Learning Difficulties",30518]
[null,"Back Pain - Other / Precise Diagnosis not Specified",4880,null,null,"Arthritis",25966]
[null,"Disease Of The Muscles, Bones or Joints",6640,null,null,"Disease Of The Muscles, Bones or Joints",6640]
[null,"Trauma to Limbs",1651,null,null,"Behavioral Disorder",6128]
[null,"Blindness",2765,null,null,"Psychosis",6010]
[null,"Deafness",1890,null,null,"Neurological Diseases",5770]
[null,"Heart Disease",5717,null,null,"Heart Disease",5717]
[null,"Chest Disease",3906,null,null,"Unknown/Transfer from AA",5635]
[null,"Asthma",1157,null,null,"Psychoneurosis",5542]
[null,"Cystic Fibrosis",451,null,null,"Back Pain - Other / Precise Diagnosis not Specified",4880,null,{"$f":"SUM(G22:G63)","v":44082}]
[null,"Cerebrovascular Disease",4464,null,null,"Hyperkinetic Syndrome",4767]
[null,"Peripheral vascular Disease",998,null,null,"Cerebrovascular Disease",4464]
[null,"Epilepsy",2330,null,null,"Chest Disease",3906]
[null,"Neurological Diseases",5770,null,null,"Diabetes Mellitus",3056]
[null,"Multiple Sclerosis",2461,null,null,"Blindness",2765]
[null,"Parkinsons Disease",543,null,null,"Spondylosis",2755]
[null,"Motor Neurone Disease",56,null,null,"Multiple Sclerosis",2461]
[null,"Chronic Pain Syndromes",1256,null,null,"Epilepsy",2330]
[null,"Diabetes Mellitus",3056,null,null,"Malignant Disease",2051]
[null,"Metabolic Disease",386,null,null,"Deafness",1890]
[null,"Traumatic Paraplegia/Tetraplegia",265,null,null,"Trauma to Limbs",1651]
[null,"Major Trauma Other than Traumatic Paraplegia/Tetraplegia",879,null,null,"Chronic Pain Syndromes",1256]
[null,"Learning Difficulties",30518,null,null,"Asthma",1157]
[null,"Psychosis",6010,null,null,"Peripheral vascular Disease",998]
[null,"Psychoneurosis",5542,null,null,"Major Trauma Other than Traumatic Paraplegia/Tetraplegia",879]
[null,"Personality Disorder",254,null,null,"Alcohol and Drug Abuse",825]
[null,"Dementia",809,null,null,"Dementia",809]
[null,"Behavioral Disorder",6128,null,null,"Bowel and Stomach Disease",665]
[null,"Alcohol and Drug Abuse",825,null,null,"Severely Mentally impaired",598]
[null,"Hyperkinetic Syndrome",4767,null,null,"Skin Disease",559]
[null,"Renal Disorders",493,null,null,"Parkinsons Disease",543]
[null,"Inflammatory Bowel Disease",387,null,null,"Renal Disorders",493]
[null,"Bowel and Stomach Disease",665,null,null,"Cystic Fibrosis",451]
[null,"Blood Disorders",154,null,null,"Terminally Ill",413]
[null,"Haemophilia",85,null,null,"Inflammatory Bowel Disease",387]
[null,"AIDS",145,null,null,"Metabolic Disease",386]
[null,"Multi System Disorders",368,null,null,"Multi System Disorders",368]
[null,"Multiple Allergy Syndrome",21,null,null,"Traumatic Paraplegia/Tetraplegia",265]
[null,"Skin Disease",559,null,null,"Personality Disorder",254]
[null,"Malignant Disease",2051,null,null,"Blood Disorders",154]
[null,"Severely Mentally impaired",598,null,null,"AIDS",145]
[null,"Double Amputee",30,null,null,"Haemophilia",85]
[null,"Deaf/Blind",32,null,null,"Cognitive disorder - other / precise diagnosis not specified",77]
[null,"Haemodialysis",9,null,null,"Motor Neurone Disease",56]
[null,"Frailty",43,null,null,"Frailty",43]
[null,"Total Parenteral Nutrition",6,null,null,"Deaf/Blind",32]
[null,"Infectious diseases: Bacterial disease - Tuberculosis",7,null,null,"Double Amputee",30]
[null,"Infectious diseases: Bacterial disease - precise diagnosis not specified","..",null,null,"Multiple Allergy Syndrome",21]
[null,"Infectious diseases: Protozoal disease - Malaria","..",null,null,"Infectious diseases - other / precise diagnosis not specified",15]
[null,"Infectious diseases: Protozoal disease - other / precise diagnosis not specified","..",null,null,"Haemodialysis",9]
[null,"Infectious diseases - other / precise diagnosis not specified",15,null,null,"Infectious diseases: Bacterial disease - Tuberculosis",7]
[null,"Cognitive disorder - other / precise diagnosis not specified",77,null,null,"Total Parenteral Nutrition",6]
[null,"Terminally Ill",413]
[null,"Unknown/Transfer from AA",5635]
[null,"Total",146895]
[]
[]
["INFO","Statistical disclosure control has been applied to this table to avoid the release of confidential data.  Totals may not sum due to the disclosure control applied."]
["Symbol","Description"]
[]
["I","The move to publishing benefit data via the Stat-Xplore instead of the DWP Tabulation Tool has involved adopting a new disclosure control methodology, in line with other benefits published via this new tool. Although the data still comes from the same source there may be small differences in the outputs displayed using this new tool, when compared to the Tabulation Tool."]
["III","\"..\" denotes a nil or negligible number of claimants or award amount based on a nil or negligible number of claimants."]
["II","Between May 2007 to November 2007 location information for some claimants is unavailable, causing a slight rise in the number of unknown geographies. Statistics for this period which show geography information should therefore be interpreted with care."]

{"sheet":"DLA-Mobility and Care Element","index":14,"n_rows":22,"n_cols":11,"rows_kept":22,"cut":false,"hidden":false,"merged":[[8,0,8,1],[9,0,9,1],[8,2,8,5]]}
["DLA Cases In Payment",null,null,null,null,"Contents"]
["Care Award Type by Quarter and Mobility Award Type by National - Regional - LA - OAs"]
["Counting: DLA (in payment)"]
[]
["Filters:"]
["Default Summation","DLA (in payment)"]
["National - Regional - LA - OAs","Scotland"]
[]
["Quarter",null,"Aug-20"]
["Mobility Award Type",null,"Higher Rate","Lower Rate","Nil Rate","Total"]
[null,"Care Award Type"]
[null,"Highest Rate",24808,12767,3988,41564,null,null,{"$f":"C12/$F$16","v":0.16888253514415058},{"$f":"D12/$F$16","v":8.6912420436366114E-2},2.7148643588958098E-2]
[null,"Middle Rate",19774,28739,11017,59531,null,null,{"$f":"C13/$F$16","v":0.13461315905919194},0.1956431464651622,7.4999149052043981E-2]
[null,"Lowest Rate",12989,7096,7936,28018,null,null,8.8423704006262982E-2,4.8306613567514207E-2,{"$f":"E14/$F$16","v":5.4024983831988838E-2}]
[null,"Nil Rate",14574,3206,"..",17780,null,null,{"$f":"C15/$F$16","v":9.9213724088634742E-2},{"$f":"D15/$F$16","v":2.1825113176078152E-2},"-"]
[null,"Total",72145,51809,22937,146895]
[]
["Symbol","Description"]
[]
["I","The move to publishing benefit data via the Stat-Xplore instead of the DWP Tabulation Tool has involved adopting a new disclosure control methodology, in line with other benefits published via this new tool. Although the data still comes from the same source there may be small differences in the outputs displayed using this new tool, when compared to the Tabulation Tool."]
["III","\"..\" denotes a nil or negligible number of claimants or award amount based on a nil or negligible number of claimants."]
["II","Between May 2007 to November 2007 location information for some claimants is unavailable, causing a slight rise in the number of unknown geographies. Statistics for this period which show geography information should therefore be interpreted with care."]

{"sheet":"CA-Payment type by age","index":15,"n_rows":31,"n_cols":42,"rows_kept":31,"cut":false,"hidden":false,"merged":[[10,0,10,1],[8,0,8,1],[8,2,8,36],[9,0,9,1],[9,2,9,10],[9,12,9,20],[9,22,9,30],[9,32,9,40]]}
["Age (bands and single year) by Payment type and Quarter by National - Regional - LA - OAs"]
["Filters:"]
[" National - Regional - LA - OAs"]
[" : Scotland"]
["Default Summation"]
[" : CA (Entitled) - 2011 Geographies"]
["Wafers:"]
["Cell count: 416 (32 x 13 x 1) total."]
[]
["Payment type",null,"Entitlement only",null,null,null,null,null,null,null,null,null,"Claimant receiving benefit",null,null,null,null,null,null,null,null,null,"Entitled, payment status unknown",null,null,null,null,null,null,null,null,null,"Total"]
["Quarter",null,"May-18","Aug-18","Nov-18","Feb-19","May-19","Aug-19","Nov-19","Feb-20","May-20","2020-08-01","May-18","Aug-18","Nov-18","Feb-19","May-19","Aug-19","Nov-19","Feb-20","May-20","2020-08-01","May-18","Aug-18","Nov-18","Feb-19","May-19","Aug-19","Nov-19","Feb-20","May-20","2020-08-01","May-18","Aug-18","Nov-18","Feb-19","May-19","Aug-19","Nov-19","Feb-20","May-20","2020-08-01"]
[null,"Age (bands and single year)"]
[null,"Under 18",35,37,46,38,27,45,37,36,40,38,263,302,272,295,335,357,331,370,459,528,"..","..","..","..","..","..","..","..","..","..",289,339,316,334,359,401,364,404,497,561]
[null,"18-24",511,538,567,539,406,402,433,423,366,233,3674,3718,3577,3630,3708,3699,3477,3542,3742,3928,"..","..","..","..","..","..","..","..","..","..",4186,4258,4148,4162,4116,4101,3906,3960,4111,4168]
[null,"25-29",588,573,603,584,494,437,427,426,356,247,4980,5021,4941,5007,5086,5094,5004,5058,5161,5225,"..","..","..","..","..","..","..","..","..","..",5566,5593,5542,5589,5581,5532,5428,5478,5518,5476]
[null,"30-34",696,707,770,739,636,592,628,618,519,381,7202,7356,7276,7422,7563,7592,7534,7653,7895,8030,"..","..","..","..","..","..","..","..","..","..",7900,8066,8041,8161,8199,8185,8160,8274,8415,8410]
[null,"35-39",846,884,907,848,772,729,706,713,616,492,8281,8397,8347,8446,8500,8591,8604,8744,9042,9268,"..","..","..","..","..","..","..","..","..","..",9130,9281,9256,9295,9271,9316,9311,9454,9657,9755]
[null,"40-44",847,861,868,868,734,690,731,715,639,494,8030,8059,8017,8093,8182,8193,8141,8261,8503,8733,"..","..","..","..","..","..","..","..","..","..",8879,8917,8888,8963,8910,8887,8876,8974,9136,9227]
[null,"45-49",1150,1094,1148,1142,993,912,855,858,761,613,9753,9756,9570,9531,9525,9489,9354,9316,9418,9489,"..","..","..","..","..","..","..","..","..","..",10906,10853,10719,10670,10519,10399,10203,10174,10179,10103]
[null,"50-54",1368,1368,1365,1378,1276,1214,1174,1137,1044,822,10535,10614,10556,10622,10633,10595,10456,10466,10582,10759,"..","..","..","..","..","..","..","..","..","..",11906,11981,11920,11996,11909,11809,11632,11599,11626,11577]
[null,"55-59",1622,1627,1634,1677,1596,1490,1430,1455,1392,1066,10671,10858,10856,10871,10979,10968,11051,11124,11303,11523,"..","..","..","..","..","..","..","..","..","..",12291,12482,12490,12547,12571,12457,12485,12577,12696,12589]
[null,"60-64",2064,1943,1789,1883,1762,1681,1595,1748,1596,1255,10570,10904,11267,11477,11664,11764,11834,11914,12126,12363,"..","..","..","..","..","..","..","..","..","..",12632,12844,13053,13356,13427,13443,13423,13663,13719,13616]
[null,"65 and over",36073,36223,36433,36334,36277,36052,35875,35683,34565,33020,797,822,762,1218,1545,1910,2052,2425,2732,3164,"..","..","..","..","..","..","..","..","..","..",36875,37045,37194,37554,37824,37964,37928,38106,37296,36180]
[null,"Unknown","..","..","..","..","..","..","..","..","..","..","..","..","..","..","..","..","..","..","..","..","..","..","..","..","..","..","..","..","..","..","..","..","..","..","..","..","..","..","..",".."]
[null,"Total",45805,45857,46129,46025,44978,44243,43891,43803,41896,38669,74757,75805,75437,76597,77711,78252,77842,78870,80963,83009,"..","..","..","..","..","..","..","..","..","..",120560,121668,121571,122620,122688,122500,121735,122667,122859,121674]
["For further information see Data Confidentiality"]
["INFO: Statistical disclosure control has been applied to this table to avoid the release of confidential data. Totals may not sum due to the disclosure control applied."]
[" Annotation Descriptions"]
["Symbol","Description"]
["I","The move to publishing benefit data via the Stat-Xplore instead of the DWP Tabulation Tool has involved adopting a new disclosure control methodology, in line with other benefits published via this new tool. Although the data still comes from the same source there may be small differences in the outputs displayed using this new tool, when compared to the Tabulation Tool."]
["III","\"..\" denotes a nil or negligible number of claimants or award amount based on a nil or negligible number of claimants."]

{"sheet":"CA-Duration by age","index":16,"n_rows":25,"n_cols":16,"rows_kept":25,"cut":false,"hidden":false,"merged":[[8,0,8,2]]}
["CA: Cases in Payment - Data from May 2018 (I\nIII)"]
["Duration of Claim and Quarter by Age (bands and single year) by National - Regional - LA - OAs"]
["Counting: CA (In Payment) - 2011 Geographies"]
[]
["Filters:"]
["Default Summation","CA (In Payment) - 2011 Geographies"]
["National - Regional - LA - OAs","Scotland"]
[]
["Age (bands and single year)",null,null,"Under 18","18-24","25-29","30-34","35-39","40-44","45-49","50-54","55-59","60-64","65 and over","Unknown","Total"]
[null,"Duration of Claim","Quarter"]
[null,"Up to 3 months","Aug-20",134,304,207,279,236,179,179,188,239,240,30,"..",2218]
[null,"3 months up to 6 months","Aug-20",143,466,349,418,411,349,299,363,469,495,116,"..",3870]
[null,"6 months up to 1 year","Aug-20",139,676,613,843,810,615,564,659,746,875,221,"..",6778]
[null,"1 year and up to 2 years","Aug-20",107,1034,1105,1522,1457,1130,1085,1182,1311,1558,399,"..",11886]
[null,"2 years and up to 5 years","Aug-20","..",1266,1942,2843,3134,2834,2692,2857,3142,3563,889,"..",25151]
[null,"5 years and over","Aug-20","..",190,1006,2123,3224,3627,4676,5501,5619,5630,1501,"..",33099]
[null,"Unknown","Aug-20","..","..","..","..","..","..","..","..","..","..","..","..",".."]
[null,"Total","Aug-20",528,3928,5225,8030,9268,8733,9489,10759,11523,12363,3164,"..",83009]
[]
[]
["INFO","Statistical disclosure control has been applied to this table to avoid the release of confidential data.  Totals may not sum due to the disclosure control applied."]
["Symbol","Description"]
[]
["I","The move to publishing benefit data via the Stat-Xplore instead of the DWP Tabulation Tool has involved adopting a new disclosure control methodology, in line with other benefits published via this new tool. Although the data still comes from the same source there may be small differences in the outputs displayed using this new tool, when compared to the Tabulation Tool."]
["III","\"..\" denotes a nil or negligible number of claimants or award amount based on a nil or negligible number of claimants."]

{"sheet":"CA- LA by duration","index":17,"n_rows":37,"n_cols":10,"rows_kept":37,"cut":false,"hidden":false,"merged":[[0,0,0,1],[0,2,0,9],[1,0,1,1],[1,2,1,9],[2,0,2,1]]}
["Quarter",null,"Aug-20"]
["CA (In Payment) - 2011 Geographies"]
["Duration of Claim",null,"Up to 3 months","3 months up to 6 months","6 months up to 1 year","1 year and up to 2 years","2 years and up to 5 years","5 years and over","Unknown","Total"]
[null,"National - Regional - LA - OAs"]
[null,"Aberdeen City",46,77,165,234,528,631,"..",1686]
[null,"Aberdeenshire",68,114,162,303,729,844,"..",2224]
[null,"Angus",41,77,137,231,487,629,"..",1600]
[null,"Argyll and Bute",20,50,88,135,335,444,"..",1075]
[null,"City of Edinburgh",118,205,347,630,1410,2035,"..",4740]
[null,"Clackmannanshire",29,49,84,130,294,364,"..",947]
[null,"Dumfries and Galloway",71,133,258,383,763,1041,"..",2649]
[null,"Dundee City",66,137,225,444,807,1035,"..",2713]
[null,"East Ayrshire",74,135,191,377,764,963,"..",2506]
[null,"East Dunbartonshire",31,67,99,194,321,466,"..",1165]
[null,"East Lothian",35,65,112,185,350,523,"..",1276]
[null,"East Renfrewshire",26,56,77,164,323,385,"..",1030]
[null,"Falkirk",81,119,218,387,807,994,"..",2613]
[null,"Fife",151,300,552,979,1975,2369,"..",6325]
[null,"Glasgow City",319,535,1013,1782,4008,5675,"..",13328]
[null,"Highland",69,121,242,417,844,1231,"..",2928]
[null,"Inverclyde",53,67,116,272,464,663,"..",1635]
[null,"Midlothian",50,66,137,201,436,528,"..",1415]
[null,"Moray",42,62,86,145,310,420,"..",1068]
[null,"Na h-Eileanan Siar",5,16,27,44,76,88,"..",249]
[null,"North Ayrshire",86,129,252,432,871,1113,"..",2882]
[null,"North Lanarkshire",196,333,550,1072,2102,2826,"..",7085]
[null,"Orkney Islands","..",10,9,38,63,83,"..",209]
[null,"Perth and Kinross",48,87,172,275,546,663,"..",1791]
[null,"Renfrewshire",85,120,200,359,859,1112,"..",2734]
[null,"Scottish Borders",30,43,98,172,386,556,"..",1294]
[null,"Shetland Islands",6,8,16,27,50,59,"..",166]
[null,"South Ayrshire",61,94,141,248,586,715,"..",1850]
[null,"South Lanarkshire",142,273,468,797,1839,2385,"..",5903]
[null,"Stirling",35,69,93,160,330,430,"..",1107]
[null,"West Dunbartonshire",38,85,136,213,530,771,"..",1772]
[null,"West Lothian",91,165,289,464,979,1074,"..",3057]
[null,"Total",2218,3870,6778,11886,25151,33099,"..",83009]

{"sheet":"CA- LA by age","index":18,"n_rows":43,"n_cols":16,"rows_kept":43,"cut":false,"hidden":false,"merged":[[7,0,7,1],[7,3,7,15],[8,0,8,1]]}
["CA: Cases in Payment - Data from May 2018 (I\nIII)"]
["National - Regional - LA - OAs by Quarter and Age (bands and single year)"]
["Counting: CA (In Payment) - 2011 Geographies"]
[]
["Filters:"]
["Default Summation","CA (In Payment) - 2011 Geographies"]
[]
["Quarter",null,null,"Aug-20"]
["Age (bands and single year)",null,"Total","Under 18","18-24","25-29","30-34","35-39","40-44","45-49","50-54","55-59","60-64","65 and over","Unknown","Total"]
[null,"National - Regional - LA - OAs"]
[null,"Aberdeen City",1645,12,53,111,165,217,216,203,198,218,236,59,"..",1686]
[null,"Aberdeenshire",2145,11,82,121,208,244,258,287,324,286,312,81,"..",2224]
[null,"Angus",1566,8,77,93,170,183,173,170,196,229,250,51,"..",1600]
[null,"Argyll and Bute",1047,6,38,45,84,109,105,132,151,155,191,58,"..",1075]
[null,"City of Edinburgh",4621,28,184,286,491,559,557,577,603,671,614,177,"..",4740]
[null,"Clackmannanshire",934,11,52,61,104,95,89,108,124,139,139,24,"..",947]
[null,"Dumfries and Galloway",2599,18,146,168,230,289,225,286,320,381,463,116,"..",2649]
[null,"Dundee City",2654,15,139,185,301,348,295,291,350,333,374,80,"..",2713]
[null,"East Ayrshire",2460,18,134,190,240,217,234,281,301,366,438,90,"..",2506]
[null,"East Dunbartonshire",1136,"..",38,57,82,97,150,133,155,184,214,52,"..",1165]
[null,"East Lothian",1222,"..",50,73,129,135,126,156,185,186,193,38,"..",1276]
[null,"East Renfrewshire",1001,7,42,43,73,92,118,133,166,146,171,40,"..",1030]
[null,"Falkirk",2527,23,135,180,231,287,276,310,333,346,408,84,"..",2613]
[null,"Fife",6179,46,317,413,663,690,675,735,793,844,926,224,"..",6325]
[null,"Glasgow City",13030,62,649,903,1332,1619,1484,1508,1746,1830,1704,497,"..",13328]
[null,"Highland",2874,13,118,152,262,336,306,352,391,440,439,125,"..",2928]
[null,"Inverclyde",1615,16,85,109,151,168,158,185,221,246,232,57,"..",1635]
[null,"Midlothian",1361,12,61,120,148,204,145,161,164,164,202,48,"..",1415]
[null,"Moray",1006,"..",30,81,114,124,107,108,117,159,185,39,"..",1068]
[null,"Na h-Eileanan Siar",244,"..",8,13,15,9,17,29,33,38,71,15,"..",249]
[null,"North Ayrshire",2813,28,151,179,278,285,254,309,384,417,473,131,"..",2882]
[null,"North Lanarkshire",6900,66,362,442,669,815,717,824,857,973,1087,271,"..",7085]
[null,"Orkney Islands",198,"..","..",12,20,20,15,24,39,36,34,9,"..",209]
[null,"Perth and Kinross",1745,15,92,140,160,214,196,210,220,203,261,89,"..",1791]
[null,"Renfrewshire",2657,15,138,148,252,311,288,317,372,352,433,98,"..",2734]
[null,"Scottish Borders",1270,6,47,55,114,136,116,131,200,222,213,49,"..",1294]
[null,"Shetland Islands",153,"..","..",12,14,20,20,22,14,30,18,16,"..",166]
[null,"South Ayrshire",1796,11,86,120,160,175,152,206,228,295,331,85,"..",1850]
[null,"South Lanarkshire",5792,46,283,341,555,643,646,652,758,841,902,231,"..",5903]
[null,"Stirling",1080,13,44,64,103,109,109,124,177,138,176,44,"..",1107]
[null,"West Dunbartonshire",1743,10,76,106,168,192,199,181,221,262,293,79,"..",1772]
[null,"West Lothian",2963,33,199,207,333,334,323,337,404,385,400,93,"..",3057]
[null,"Total",80963,528,3928,5225,8030,9268,8733,9489,10759,11523,12363,3164,"..",83009]

{"sheet":"CA- LA by gender","index":19,"n_rows":48,"n_cols":10,"rows_kept":48,"cut":false,"hidden":false,"merged":[[6,0,6,1],[4,0,4,1],[4,2,4,9],[5,0,5,1],[5,2,5,5],[5,6,5,9]]}
["CA: Cases in Payment - Data from May 2018 (I\nIII)"]
["National - Regional - LA - OAs by Quarter, Measures and Gender"]
["Counting: Mean of Weekly Award Amount, CA (In Payment) - 2011 Geographies"]
[]
["Quarter",null,"Aug-20"]
["Measures",null,"Mean of Weekly Award Amount",null,null,null,"CA (In Payment) - 2011 Geographies"]
["Gender",null,"Male","Female","Unknown","Total","Male","Female","Unknown","Total"]
[null,"National - Regional - LA - OAs"]
[null,"Aberdeen City",67.11,67.12,"..",67.12,460,1228,"..",1686]
[null,"Aberdeenshire",67.040000000000006,67.14,"..",67.12,515,1709,"..",2224]
[null,"Angus",67.13,67.17,"..",67.16,455,1139,"..",1600]
[null,"Argyll and Bute",66.92,66.87,"..",66.89,370,708,"..",1075]
[null,"City of Edinburgh",67.11,66.86,"..",66.94,1399,3340,"..",4740]
[null,"Clackmannanshire",67.260000000000005,67.23,"..",67.23,281,670,"..",947]
[null,"Dumfries and Galloway",67.180000000000007,66.930000000000007,"..",67.010000000000005,837,1810,"..",2649]
[null,"Dundee City",67.25,67.03,"..",67.099999999999994,920,1795,"..",2713]
[null,"East Ayrshire",67.11,66.86,"..",66.95,859,1647,"..",2506]
[null,"East Dunbartonshire",67.2,67.13,"..",67.150000000000006,377,795,"..",1165]
[null,"East Lothian",67.069999999999993,66.92,"..",66.97,360,911,"..",1276]
[null,"East Renfrewshire",66.88,66.91,"..",66.900000000000006,318,712,"..",1030]
[null,"Falkirk",67.16,67.14,"..",67.14,777,1838,"..",2613]
[null,"Fife",67.2,66.92,"..",67.010000000000005,2022,4305,"..",6325]
[null,"Glasgow City",67.069999999999993,66.98,"..",67.010000000000005,4490,8833,"..",13328]
[null,"Highland",67.150000000000006,66.87,"..",66.95,844,2084,"..",2928]
[null,"Inverclyde",67.25,67.069999999999993,"..",67.13,562,1069,"..",1635]
[null,"Midlothian",67.2,66.91,"..",66.989999999999995,399,1014,"..",1415]
[null,"Moray",66.81,66.7,"..",66.72,271,792,"..",1068]
[null,"Na h-Eileanan Siar",66.599999999999994,66.489999999999995,"..",66.52,87,162,"..",249]
[null,"North Ayrshire",67.040000000000006,66.88,"..",66.930000000000007,964,1924,"..",2882]
[null,"North Lanarkshire",67.150000000000006,67,"..",67.05,2276,4809,"..",7085]
[null,"Orkney Islands",67.260000000000005,67.27,"..",67.25,70,139,"..",209]
[null,"Perth and Kinross",66.83,66.91,"..",66.89,498,1297,"..",1791]
[null,"Renfrewshire",67.13,67.069999999999993,"..",67.09,863,1871,"..",2734]
[null,"Scottish Borders",67.25,66.930000000000007,"..",67.03,437,855,"..",1294]
[null,"Shetland Islands",66.48,66.06,"..",66.180000000000007,52,117,"..",166]
[null,"South Ayrshire",67.16,66.83,"..",66.95,646,1199,"..",1850]
[null,"South Lanarkshire",67.150000000000006,66.98,"..",67.03,1745,4159,"..",5903]
[null,"Stirling",66.84,66.930000000000007,"..",66.900000000000006,347,758,"..",1107]
[null,"West Dunbartonshire",67.239999999999995,66.989999999999995,"..",67.069999999999993,565,1208,"..",1772]
[null,"West Lothian",67.25,66.86,"..",66.98,922,2134,"..",3057]
[null,"Total",67.12,66.959999999999994,"..",67.010000000000005,25992,57016,"..",83009]
[]
[]
["INFO","Statistical disclosure control has been applied to this table to avoid the release of confidential data.  Totals may not sum due to the disclosure control applied."]
["Symbol","Description"]
[]
["I","The move to publishing benefit data via the Stat-Xplore instead of the DWP Tabulation Tool has involved adopting a new disclosure control methodology, in line with other benefits published via this new tool. Although the data still comes from the same source there may be small differences in the outputs displayed using this new tool, when compared to the Tabulation Tool."]
["III","\"..\" denotes a nil or negligible number of claimants or award amount based on a nil or negligible number of claimants."]

{"sheet":"CA-client type","index":20,"n_rows":48,"n_cols":6,"rows_kept":48,"cut":false,"hidden":false,"merged":[[4,0,4,1],[4,2,4,5],[5,0,5,1],[5,2,5,5],[6,0,6,1]]}
["CA: Cases in Payment - Data from May 2018 (I\nIII)"]
["National - Regional - LA - OAs by Quarter, CA (In Payment) - 2011 Geographies and Client type"]
["Counting: CA (In Payment) - 2011 Geographies"]
[]
["Quarter",null,"Aug-20"]
["CA (In Payment) - 2011 Geographies"]
["Client type",null,"Children","Working age","Over State Pension age","Total"]
[null,"National - Regional - LA - OAs"]
[null,"Aberdeen City","..",1678,9,1686]
[null,"Aberdeenshire","..",2207,13,2224]
[null,"Angus","..",1592,6,1600]
[null,"Argyll and Bute","..",1059,15,1075]
[null,"City of Edinburgh","..",4683,61,4740]
[null,"Clackmannanshire","..",944,7,947]
[null,"Dumfries and Galloway","..",2630,23,2649]
[null,"Dundee City","..",2697,20,2713]
[null,"East Ayrshire","..",2485,24,2506]
[null,"East Dunbartonshire","..",1165,7,1165]
[null,"East Lothian","..",1267,6,1276]
[null,"East Renfrewshire","..",1020,10,1030]
[null,"Falkirk","..",2604,8,2613]
[null,"Fife","..",6276,52,6325]
[null,"Glasgow City","..",13199,129,13328]
[null,"Highland","..",2902,23,2928]
[null,"Inverclyde","..",1627,6,1635]
[null,"Midlothian","..",1406,10,1415]
[null,"Moray","..",1054,9,1068]
[null,"Na h-Eileanan Siar","..",245,"..",249]
[null,"North Ayrshire","..",2856,25,2882]
[null,"North Lanarkshire","..",7037,52,7085]
[null,"Orkney Islands","..",205,"..",209]
[null,"Perth and Kinross","..",1763,28,1791]
[null,"Renfrewshire","..",2711,23,2734]
[null,"Scottish Borders","..",1283,9,1294]
[null,"Shetland Islands","..",161,5,166]
[null,"South Ayrshire","..",1829,16,1850]
[null,"South Lanarkshire","..",5850,49,5903]
[null,"Stirling","..",1096,15,1107]
[null,"West Dunbartonshire","..",1758,14,1772]
[null,"West Lothian","..",3037,20,3057]
[null,"Total","..",82311,699,83009]
[]
[]
["INFO","Statistical disclosure control has been applied to this table to avoid the release of confidential data.  Totals may not sum due to the disclosure control applied."]
["Symbol","Description"]
[]
["I","The move to publishing benefit data via the Stat-Xplore instead of the DWP Tabulation Tool has involved adopting a new disclosure control methodology, in line with other benefits published via this new tool. Although the data still comes from the same source there may be small differences in the outputs displayed using this new tool, when compared to the Tabulation Tool."]
["III","\"..\" denotes a nil or negligible number of claimants or award amount based on a nil or negligible number of claimants."]

{"sheet":"CA-Gender","index":21,"n_rows":20,"n_cols":4,"rows_kept":20,"cut":false,"hidden":false,"merged":[[8,0,8,1]]}
["CA Cases In Payment",null,null,"Contents"]
["Gender by Quarter by National - Regional - LA - OAs"]
["Counting: CA (In Payment)"]
[]
["Filters:"]
["Default Summation","CA (In Payment)"]
["National - Regional - LA - OAs","Scotland"]
[]
["Quarter"]
[null,"Gender"]
[null,"Male"]
[null,"Female"]
[null,"Unknown"]
[null,"Total"]
[]
["Symbol","Description"]
[]
["I","The move to publishing benefit data via the Stat-Xplore instead of the DWP Tabulation Tool has involved adopting a new disclosure control methodology, in line with other benefits published via this new tool. Although the data still comes from the same source there may be small differences in the outputs displayed using this new tool, when compared to the Tabulation Tool."]
["III","\"..\" denotes a nil or negligible number of claimants or award amount based on a nil or negligible number of claimants."]
["II","Between May 2007 to November 2007 location information for some claimants is unavailable, causing a slight rise in the number of unknown geographies. Statistics for this period which show geography information should therefore be interpreted with care."]

{"sheet":"SDA-Claimant Count","index":22,"n_rows":96,"n_cols":4,"rows_kept":96,"cut":false,"hidden":false,"merged":[]}
["SDA - Claimant count",null,null,"Contents"]
[]
["Dataset: Incapacity Benefit and Severe Disablement Allowance"]
["Rows: Benefit Combination (SDA)"]
["Columns: Quarters"]
["Filter: National - Regional - LA - OAS : Scotland, deafult summation"]
[]
["Quarter"]
["Aug-99",42047]
["Nov-99",41835]
["Feb-00",41661]
["May-00",41648]
["Aug-00",41637]
["Nov-00",41606]
["Feb-01",41652]
["May-01",41348]
["Aug-01",40836]
["Nov-01",39841]
["Feb-02",39692]
["May-02",37108]
["Aug-02",36704]
["Nov-02",36271]
["Feb-03",35821]
["May-03",35368]
["Aug-03",34969]
["Nov-03",34555]
["Feb-04",34182]
["May-04",33769]
["Aug-04",33465]
["Nov-04",33169]
["Feb-05",32798]
["May-05",32430]
["Aug-05",32083]
["Nov-05",31762]
["Feb-06",31394]
["May-06",31027]
["Aug-06",30661]
["Nov-06",30286]
["Feb-07",29924]
["May-07",29559]
["Aug-07",29219]
["Nov-07",28924]
["Feb-08",28583]
["May-08",28233]
["Aug-08",27895]
["Nov-08",27561]
["Feb-09",27230]
["May-09",26928]
["Aug-09",26669]
["Nov-09",26355]
["Feb-10",26073]
["May-10",25758]
["Aug-10",25512]
["Nov-10",25185]
["Feb-11",24879]
["May-11",24631]
["Aug-11",24363]
["Nov-11",24108]
["Feb-12",23875]
["May-12",23539]
["Aug-12",23253]
["Nov-12",22819]
["Feb-13",22363]
["May-13",21987]
["Aug-13",21502]
["Nov-13",20763]
["Feb-14",19657]
["May-14",18735]
["Aug-14",18012]
["Nov-14",16577]
["Feb-15",15098]
["May-15",13466]
["Aug-15",11876]
["Nov-15",10627]
["Feb-16",8157]
["May-16",5941]
["Aug-16",4835]
["Nov-16",3989]
["Feb-17",3270]
["May-17",2854]
["Aug-17",2681]
["Nov-17",2524]
["Feb-18",2266]
["May-18",2090]
["Aug-18",2018]
["Nov-18",1955]
["Feb-19",1878]
["May-19",1829]
["Aug-19",1784]
["Nov-19",1728]
["Feb-20",1673]
["May-20",1613]
["Aug-20",1570]
["Warning: This data does not include claimants of Employment and Support Allowance (ESA)."]
["The move to publishing benefit data via the Stat-Xplore instead of NOMIS has involved adopting a new disclosure control methodology, in line with other benefits published via this new toolto NOMIS."]
["Although the data still comes from the same source there may be small differences in the outputs displayed using the new tool, when compared to NOMIS"]

{"sheet":"SDA-Gender","index":23,"n_rows":12,"n_cols":4,"rows_kept":12,"cut":false,"hidden":false,"merged":[]}
["SDA - Gender of Claimant",null,null,"Contents"]
[]
["Dataset: Incapacity Benefit and Severe Disablement Allowance"]
["Rows: Gender of Claimant"]
["Columns: Quarters: Feb-20"]
["Filter: National - Regional - LA - OAS : Scotland, Benefit comination: SDA"]
[]
["Sex","Aug-20"]
["Male",284]
["Female",1285]
["Total",1570]
["Unknown","-"]

{"sheet":"SDA-Qualifying","index":24,"n_rows":39,"n_cols":5,"rows_kept":39,"cut":false,"hidden":false,"merged":[]}
["SDA - Qualifying Condition ",null,"Contents"]
[]
["Dataset: Incapacity Benefit and Severe Disablement Allowance"]
["Rows: Medical Condition"]
[]
["Filter: National - Regional - LA - OAS : Scotland, Benefit comination: SDA"]
[]
[]
["Quarter","Aug-20"]
["Medical condition (IV)",null,null,"Diseases of the Blood and Blood forming organs and certain diseases involving the immune mechanism",".."]
["Certain Infectious and Parasitic diseases",5,null,"Diseases of the Skin and Subcutaneous System",".."]
["Neoplasms",17,null,"Diseases of the Genito-urinary System",".."]
["Diseases of the Blood and Blood forming organs and certain diseases involving the immune mechanism","..",null,"Pregnancy, Childbirth and the Puerperium",".."]
["Endocrine, Nutritional and Metabolic diseases",17,null,"Certain conditions originating in the Perinatal period",".."]
["Mental and Behavioural disorders",614,null,"External causes of morbidity and mortality",".."]
["Diseases of the Nervous System",141,null,"Codes for special purposes",".."]
["Diseases of the Eye and Adnexa",29,null,"Unknown or claimants without diagnosis on the system",".."]
["Diseases of the Ear and Mastoid Process",10,null,"Not available",".."]
["Diseases of the Circulatory System",75,null,"Mental and Behavioural disorders",614]
["Diseases of the Respiratory System",26,null,"Symptoms, signs and abnormal Clinical and Laboratory findings, not elsewhere classified",347]
["Diseases of the Digestive System",14,null,"Disease of the Musculoskeletal System and Connective Tissue",219]
["Diseases of the Skin and Subcutaneous System","..",null,"Diseases of the Nervous System",141]
["Disease of the Musculoskeletal System and Connective Tissue",219,null,"Diseases of the Circulatory System",75]
["Diseases of the Genito-urinary System","..",null,"Diseases of the Eye and Adnexa",29]
["Pregnancy, Childbirth and the Puerperium","..",null,"Factors influencing Health Status and contact with Health Services",27]
["Certain conditions originating in the Perinatal period","..",null,"Diseases of the Respiratory System",26]
["Congenital Malformations, Deformations and Chromosomal Abnormalities",12,null,"Neoplasms",17]
["Symptoms, signs and abnormal Clinical and Laboratory findings, not elsewhere classified",347,null,"Endocrine, Nutritional and Metabolic diseases",17]
["Injury, poisoning and certain other consequences of external causes",13,null,"Diseases of the Digestive System",14]
["External causes of morbidity and mortality","..",null,"Injury, poisoning and certain other consequences of external causes",13]
["Factors influencing Health Status and contact with Health Services",27,null,"Congenital Malformations, Deformations and Chromosomal Abnormalities",12]
["Codes for special purposes","..",null,"Diseases of the Ear and Mastoid Process",10]
["Unknown or claimants without diagnosis on the system","..",null,"Certain Infectious and Parasitic diseases",5]
["Not available","..",null,"Medical condition (IV)"]
["Total",1570]
["- These figures are missing."]
["Warning: This data does not include claimants of Employment and Support Allowance (ESA)."]
["The move to publishing benefit data via the StatXplore instead of NOMIS has involved adopting a new disclosure control methodology, in line with other benefits published via StatXplore"]
["Although the data still comes from the same source there may be small differences in the outputs displayed using StatXplore, when compared to NOMIS"]

{"sheet":"Carer's Allowance","index":25,"n_rows":134,"n_cols":7,"rows_kept":134,"cut":false,"hidden":false,"merged":[]}
["Summary Panel: Carer’s Allowance claimants to August 2020"]
[]
[]
[]
[]
[]
[]
[]
[]
[]
[]
[]
[]
[]
[]
[]
[]
[]
[]
[]
[]
[]
[]
[]
[]
[]
[]
[]
[]
[]
[]
[]
[]
[]
[]
[]
[]
[]
[]
[]
[]
[]
[]
[]
[]
[]
[]
["Table S1 Carer's Allowance claimants - to Aug 2020"]
["Payment Type",{"$f":"'CA-Payment type by age'!G11","v":"May-19"},{"$f":"'CA-Payment type by age'!H11","v":"Aug-19"},{"$f":"'CA-Payment type by age'!I11","v":"Nov-19"},{"$f":"'CA-Payment type by age'!J11","v":"Feb-20"},{"$f":"'CA-Payment type by age'!K11","v":"May-20"},{"$f":"'CA-Payment type by age'!L11","v":"2020-08-01"}]
["Entitlement only",{"$f":"'CA-Payment type by age'!G25","v":44978},{"$f":"'CA-Payment type by age'!H25","v":44243},{"$f":"'CA-Payment type by age'!I25","v":43891},{"$f":"'CA-Payment type by age'!J25","v":43803},{"$f":"'CA-Payment type by age'!K25","v":41896},{"$f":"'CA-Payment type by age'!L25","v":38669}]
["Claimant receiving benefit",{"$f":"'CA-Payment type by age'!Q25","v":77711},{"$f":"'CA-Payment type by age'!R25","v":78252},{"$f":"'CA-Payment type by age'!S25","v":77842},{"$f":"'CA-Payment type by age'!T25","v":78870},{"$f":"'CA-Payment type by age'!U25","v":80963},{"$f":"'CA-Payment type by age'!V25","v":83009}]
["Total",{"$f":"'CA-Payment type by age'!AK25","v":122688},{"$f":"'CA-Payment type by age'!AL25","v":122500},{"$f":"'CA-Payment type by age'!AM25","v":121735},{"$f":"'CA-Payment type by age'!AN25","v":122667},{"$f":"'CA-Payment type by age'!AO25","v":122859},{"$f":"'CA-Payment type by age'!AP25","v":121674}]
[]
["Table S2 Carer's Allowance claimants receiving benefit by gender - at Aug 2020"]
["Gender"]
["Total",{"$f":"'CA- LA by gender'!J41","v":83009},{"$f":"B56/B56","v":1}]
["Female",{"$f":"'CA- LA by gender'!H41","v":57016},{"$f":"B57/B56","v":0.68686527966846966}]
["Male",{"$f":"'CA- LA by gender'!G41","v":25992},{"$f":"B58/B56","v":0.31312267344504813}]
["Unknown","-",{"$f":"B59/B56","v":{"$error":"#VALUE!"}}]
[]
["Table S3 Carer's Allowance claimants receiving benefit by Age band - at Aug 2020"]
["Age band"]
["Total",{"$f":"'CA-Payment type by age'!V25","v":83009},1]
["Under 18",{"$f":"'CA-Payment type by age'!V13","v":528},{"$f":"B64/B$63","v":6.3607560625956218E-3}]
["18-24",{"$f":"'CA-Payment type by age'!V14","v":3928},{"$f":"B65/B$63","v":4.732017010203713E-2}]
["25-29",{"$f":"'CA-Payment type by age'!V15","v":5225},6.294498186943584E-2]
["30-34",{"$f":"'CA-Payment type by age'!V16","v":8030},9.6736498451975086E-2]
["35-39",{"$f":"'CA-Payment type by age'!V17","v":9268},0.11165054391692467]
["40-44",{"$f":"'CA-Payment type by age'!V18","v":8733},0.10520545964895373]
["45-49",{"$f":"'CA-Payment type by age'!V19","v":9489},0.11431290582948837]
["50-54",{"$f":"'CA-Payment type by age'!V20","v":10759},0.12961245166186799]
["55-59",{"$f":"'CA-Payment type by age'!V21","v":11523},0.13881627293426013]
["60-64",{"$f":"'CA-Payment type by age'!V22","v":12363},0.14893565757929864]
["65 & over",{"$f":"'CA-Payment type by age'!V23","v":3164},3.8116348829644979E-2]
["Unknown",{"$f":"'CA-Payment type by age'!V24","v":".."},{"$error":"#VALUE!"}]
[]
["Table S4 Carer's Allowance claimants receiving benefit by Duration of Claim - at Aug 2020"]
["Duration of Claim"]
["Total",{"$f":"'CA-Duration by age'!P18","v":83009},1]
["Up to 3 months",{"$f":"'CA-Duration by age'!P11","v":2218},{"$f":"B80/B$79","v":2.6719994217494488E-2}]
["3 to 6 months",{"$f":"'CA-Duration by age'!P12","v":3870},{"$f":"B81/B$79","v":4.6621450686070189E-2}]
["6 to 12 months",{"$f":"'CA-Duration by age'!P13","v":6778},8.1653796576274862E-2]
["1 to 2 years",{"$f":"'CA-Duration by age'!P14","v":11886},0.14318929272729464]
["2 to 5 years",{"$f":"'CA-Duration by age'!P15","v":25151},0.30299124191352744]
["5 years & over",{"$f":"'CA-Duration by age'!P16","v":33099},0.39873989567396306]
["Unknown",{"$f":"'CA-Duration by age'!P17","v":".."},{"$error":"#VALUE!"}]
[]
["Table S5 Carer's Allowance claimants by Entitlement - at Aug 2020"]
["Payment type"]
["Total",{"$f":"G52","v":121674},1]
["Entitlement only",{"$f":"G50","v":38669},{"$f":"B91/B90","v":0.31780824169502114}]
["Claimant receiving benefit",{"$f":"G51","v":83009},{"$f":"B92/B90","v":0.68222463303581704}]
["Entitled, payment status unknown",{"$f":"'CA-Payment type by age'!AB25","v":".."},{"$f":"B93/B90","v":{"$error":"#VALUE!"}}]
[]
["Table S6 Carer's Allowance claimants receiving benefit - Age band by Duration of Claim - at Aug 2020"]
[null,"Duration of Claim"]
["Ageband","Up to 3 months","3 to 6 months","6 to 12 months","1 to 2 years","2 to 5 years","5 years & over"]
["Under 18",{"$f":"'CA-Duration by age'!$D11/'CA-Duration by age'!$D18","v":0.25378787878787878},{"$f":"'CA-Duration by age'!$D12/'CA-Duration by age'!$D18","v":0.27083333333333331},{"$f":"'CA-Duration by age'!$D13/'CA-Duration by age'!$D18","v":0.26325757575757575},{"$f":"'CA-Duration by age'!$D14/'CA-Duration by age'!$D18","v":0.20265151515151514},{"$f":"'CA-Duration by age'!$D15/'CA-Duration by age'!$D18","v":{"$error":"#VALUE!"}},{"$f":"'CA-Duration by age'!$D16/'CA-Duration by age'!$D18","v":{"$error":"#VALUE!"}}]
["18-24",{"$f":"'CA-Duration by age'!$E11/'CA-Duration by age'!$E18","v":7.7393075356415472E-2},{"$f":"'CA-Duration by age'!$E12/'CA-Duration by age'!$E18","v":0.11863543788187372},{"$f":"'CA-Duration by age'!$E13/'CA-Duration by age'!$E18","v":0.17209775967413443},{"$f":"'CA-Duration by age'!$E14/'CA-Duration by age'!$E18","v":0.26323828920570264},{"$f":"'CA-Duration by age'!$E15/'CA-Duration by age'!$E18","v":0.32230142566191444},{"$f":"'CA-Duration by age'!$E16/'CA-Duration by age'!$E18","v":4.8370672097759672E-2}]
["25-29",{"$f":"'CA-Duration by age'!$F11/'CA-Duration by age'!$F18","v":3.9617224880382773E-2},{"$f":"'CA-Duration by age'!$F12/'CA-Duration by age'!$F18","v":6.6794258373205739E-2},{"$f":"'CA-Duration by age'!$F13/'CA-Duration by age'!$F18","v":0.11732057416267942},{"$f":"'CA-Duration by age'!$F14/'CA-Duration by age'!$F18","v":0.21148325358851675},{"$f":"'CA-Duration by age'!$F15/'CA-Duration by age'!$F18","v":0.37167464114832538},{"$f":"'CA-Duration by age'!$F16/'CA-Duration by age'!$F18","v":0.19253588516746412}]
["30-34",{"$f":"'CA-Duration by age'!$G11/'CA-Duration by age'!$G18","v":3.4744707347447071E-2},{"$f":"'CA-Duration by age'!$G12/'CA-Duration by age'!$G18","v":5.2054794520547946E-2},{"$f":"'CA-Duration by age'!$G13/'CA-Duration by age'!$G18","v":0.1049813200498132},{"$f":"'CA-Duration by age'!$G14/'CA-Duration by age'!$G18","v":0.18953922789539229},{"$f":"'CA-Duration by age'!$G15/'CA-Duration by age'!$G18","v":0.35404732254047322},{"$f":"'CA-Duration by age'!$G16/'CA-Duration by age'!$G18","v":0.26438356164383564}]
["35-39",{"$f":"'CA-Duration by age'!$H11/'CA-Duration by age'!$H18","v":2.5463962019853258E-2},{"$f":"'CA-Duration by age'!$H12/'CA-Duration by age'!$H18","v":4.4346137246439363E-2},{"$f":"'CA-Duration by age'!$H13/'CA-Duration by age'!$H18","v":8.7397496763055679E-2},{"$f":"'CA-Duration by age'!$H14/'CA-Duration by age'!$H18","v":0.15720759602934831},{"$f":"'CA-Duration by age'!$H15/'CA-Duration by age'!$H18","v":0.3381527837721191},{"$f":"'CA-Duration by age'!$H16/'CA-Duration by age'!$H18","v":0.34786361674579197}]
["40-44",{"$f":"'CA-Duration by age'!$I11/'CA-Duration by age'!$I18","v":2.0496965533035611E-2},{"$f":"'CA-Duration by age'!$I12/'CA-Duration by age'!$I18","v":3.9963357380052675E-2},{"$f":"'CA-Duration by age'!$I13/'CA-Duration by age'!$I18","v":7.0422535211267609E-2},{"$f":"'CA-Duration by age'!$I14/'CA-Duration by age'!$I18","v":0.12939425168899577},{"$f":"'CA-Duration by age'!$I15/'CA-Duration by age'!$I18","v":0.32451620290850797},{"$f":"'CA-Duration by age'!$I16/'CA-Duration by age'!$I18","v":0.4153211954654758}]
["45-49",{"$f":"'CA-Duration by age'!$J11/'CA-Duration by age'!$J18","v":1.886394772894931E-2},{"$f":"'CA-Duration by age'!$J12/'CA-Duration by age'!$J18","v":3.1510169670144375E-2},{"$f":"'CA-Duration by age'!$J13/'CA-Duration by age'!$J18","v":5.9437243123616819E-2},{"$f":"'CA-Duration by age'!$J14/'CA-Duration by age'!$J18","v":0.11434292338497207},{"$f":"'CA-Duration by age'!$J15/'CA-Duration by age'!$J18","v":0.28369691221414267},{"$f":"'CA-Duration by age'!$J16/'CA-Duration by age'!$J18","v":0.49278111497523447}]
["50-54",{"$f":"'CA-Duration by age'!$K11/'CA-Duration by age'!$K18","v":1.7473742912910123E-2},{"$f":"'CA-Duration by age'!$K12/'CA-Duration by age'!$K18","v":3.3739195092480717E-2},{"$f":"'CA-Duration by age'!$K13/'CA-Duration by age'!$K18","v":6.1251045636211546E-2},{"$f":"'CA-Duration by age'!$K14/'CA-Duration by age'!$K18","v":0.10986151129287108},{"$f":"'CA-Duration by age'!$K15/'CA-Duration by age'!$K18","v":0.2655451250116182},{"$f":"'CA-Duration by age'!$K16/'CA-Duration by age'!$K18","v":0.51129287108467325}]
["55-59",{"$f":"'CA-Duration by age'!$L11/'CA-Duration by age'!$L18","v":2.0741126442766641E-2},{"$f":"'CA-Duration by age'!$L12/'CA-Duration by age'!$L18","v":4.0701206283086003E-2},{"$f":"'CA-Duration by age'!$L13/'CA-Duration by age'!$L18","v":6.4740085047296711E-2},{"$f":"'CA-Duration by age'!$L14/'CA-Duration by age'!$L18","v":0.11377245508982035},{"$f":"'CA-Duration by age'!$L15/'CA-Duration by age'!$L18","v":0.27267204720992799},{"$f":"'CA-Duration by age'!$L16/'CA-Duration by age'!$L18","v":0.48763342879458477}]
["60-64",{"$f":"'CA-Duration by age'!$M11/'CA-Duration by age'!$M18","v":1.9412763892259162E-2},{"$f":"'CA-Duration by age'!$M12/'CA-Duration by age'!$M18","v":4.0038825527784518E-2},{"$f":"'CA-Duration by age'!$M13/'CA-Duration by age'!$M18","v":7.0775701690528187E-2},{"$f":"'CA-Duration by age'!$M14/'CA-Duration by age'!$M18","v":0.12602119226724906},{"$f":"'CA-Duration by age'!$M15/'CA-Duration by age'!$M18","v":0.28819865728383076},{"$f":"'CA-Duration by age'!$M16/'CA-Duration by age'!$M18","v":0.4553910863059128}]
["65 & over",{"$f":"'CA-Duration by age'!$N11/'CA-Duration by age'!$N18","v":9.4816687737041723E-3},{"$f":"'CA-Duration by age'!$N12/'CA-Duration by age'!$N18","v":3.6662452591656132E-2},{"$f":"'CA-Duration by age'!$N13/'CA-Duration by age'!$N18","v":6.9848293299620737E-2},{"$f":"'CA-Duration by age'!$N14/'CA-Duration by age'!$N18","v":0.12610619469026549},{"$f":"'CA-Duration by age'!$N15/'CA-Duration by age'!$N18","v":0.28097345132743362},{"$f":"'CA-Duration by age'!$N16/'CA-Duration by age'!$N18","v":0.47439949431099876}]
[]
["Table S7 Carer's Allowance claimants - Age band by Entitlement - at Aug 2020"]
["Ageband","Entitlement only","Claimant receiving benefit","Entitlement only","Claimant receiving benefit"]
["Total",{"$f":"'CA-Payment type by age'!L25","v":38669},{"$f":"'CA-Payment type by age'!V25","v":83009},1,1]
["Under 18",{"$f":"'CA-Payment type by age'!L13","v":38},{"$f":"'CA-Payment type by age'!V13","v":528},{"$f":"B113/B$112","v":9.8269931986862862E-4},{"$f":"C113/C$112","v":6.3607560625956218E-3}]
["18-24",{"$f":"'CA-Payment type by age'!L14","v":233},{"$f":"'CA-Payment type by age'!V14","v":3928},{"$f":"B114/B$112","v":6.0254984612997491E-3},4.732017010203713E-2]
["25-29",{"$f":"'CA-Payment type by age'!L15","v":247},{"$f":"'CA-Payment type by age'!V15","v":5225},6.3875455791460858E-3,6.294498186943584E-2]
["30-34",{"$f":"'CA-Payment type by age'!L16","v":381},{"$f":"'CA-Payment type by age'!V16","v":8030},9.8528537071038823E-3,9.6736498451975086E-2]
["35-39",{"$f":"'CA-Payment type by age'!L17","v":492},{"$f":"'CA-Payment type by age'!V17","v":9268},1.2723370141456981E-2,{"$f":"C117/C$112","v":0.11165054391692467}]
["40-44",{"$f":"'CA-Payment type by age'!L18","v":494},{"$f":"'CA-Payment type by age'!V18","v":8733},{"$f":"B118/B$112","v":1.2775091158292172E-2},0.10520545964895373]
["45-49",{"$f":"'CA-Payment type by age'!L19","v":613},{"$f":"'CA-Payment type by age'!V19","v":9489},1.5852491659986034E-2,0.11431290582948837]
["50-54",{"$f":"'CA-Payment type by age'!L20","v":822},{"$f":"'CA-Payment type by age'!V20","v":10759},2.1257337919263493E-2,0.12961245166186799]
["55-59",{"$f":"'CA-Payment type by age'!L21","v":1066},{"$f":"'CA-Payment type by age'!V21","v":11523},2.7567301973156794E-2,0.13881627293426013]
["60-64",{"$f":"'CA-Payment type by age'!L22","v":1255},{"$f":"'CA-Payment type by age'!V22","v":12363},3.2454938064082339E-2,0.14893565757929864]
["65 & over",{"$f":"'CA-Payment type by age'!L23","v":33020},{"$f":"'CA-Payment type by age'!V23","v":3164},0.85391398794900308,3.8116348829644979E-2]
[]
[]
["These figures are subject to DWP's rounding techniques for disclosure control:"]
["https://www.gov.uk/government/publications/dwp-statistical-summary-policies-and-statements"]
["Totals may not sum due to rounding."]
["\"-\" indicates a nil or negligible number "]
[]
["Carer’s Allowance data is available in more detail on Stat-Xplore, where you can access data at lower geographies e.g. Local Authority, Census Output Area, Scottish and Westminster Parliamentary Constituencies:"]
["https://stat-xplore.dwp.gov.uk/webapi/jsf/login.xhtml"]
["Carer’s Allowance statistics are published as part of DWP’s benefits statistics collection: "]
["https://www.gov.uk/government/collections/dwp-statistical-summaries "]

{"sheet":"Disablity Living Allowance","index":26,"n_rows":128,"n_cols":7,"rows_kept":128,"cut":false,"hidden":false,"merged":[]}
["Summary Panel: Disability Living Allowance claimants to August 2020"]
[]
[]
[]
[]
[]
[]
[]
[]
[]
[]
[]
[]
[]
[]
[]
[]
[]
[]
[]
[]
[]
[]
[]
[]
[]
[]
[]
[]
[]
[]
[]
[]
[]
[]
[]
[]
[]
[]
[]
[]
[]
[]
[]
[]
[]
[]
["Table S1 Disability Living Allowance claimants - to August 2020"]
["Payment Type",{"$f":"'DLA-In payment time series'!F9","v":"Aug-19"},{"$f":"'DLA-In payment time series'!G9","v":"Nov-19"},{"$f":"'DLA-In payment time series'!H9","v":"Feb-20"},{"$f":"'DLA-In payment time series'!I9","v":"May-20"},{"$f":"'DLA-In payment time series'!J9","v":"Aug-20"}]
["Entitlement only",{"$f":"'DLA-Entitlement time series'!G11-B51","v":1813},{"$f":"'DLA-Entitlement time series'!H11-C51","v":1747},{"$f":"'DLA-Entitlement time series'!I11-D51","v":1656},{"$f":"'DLA-Entitlement time series'!J11-E51","v":1511},{"$f":"'DLA-Entitlement time series'!K11-F51","v":1469}]
["Claimant receiving benefit",{"$f":"'DLA-In payment time series'!F10","v":172294},{"$f":"'DLA-In payment time series'!G10","v":164774},{"$f":"'DLA-In payment time series'!H10","v":156174},{"$f":"'DLA-In payment time series'!I10","v":148030},{"$f":"'DLA-In payment time series'!J10","v":146895}]
["Total",{"$f":"B50+B51","v":174107},166521,157830,149541,148364]
[]
["Table S2 Disability Living Allowance claimants receiving benefit by gender - at August 2020"]
["Gender"]
["Total",{"$f":"'DLA-Gender'!C14","v":146895},1]
["Female",{"$f":"'DLA-Gender'!C12","v":69826},{"$f":"B57/B56","v":0.47534633581810137}]
["Male",{"$f":"'DLA-Gender'!C11","v":77073},{"$f":"B58/B56","v":0.52468089451649136}]
["Unknown",{"$f":"'CA-Gender'!C13","v":0},{"$f":"B59/B56","v":0}]
[]
["Table S3 Disability Living Allowance claimants receiving benefit by Age band - at August 2020"]
["Age band"]
["Total",{"$f":"'DLA–Age Distribution'!C31","v":146895},1]
[{"$f":"'DLA–Age Distribution'!B11","v":"Under 5"},{"$f":"'DLA–Age Distribution'!C11","v":3961},{"$f":"B64/$B$63","v":2.6964838830457128E-2}]
[{"$f":"'DLA–Age Distribution'!B12","v":"5 to 10"},{"$f":"'DLA–Age Distribution'!C12","v":18592},{"$f":"B65/$B$63","v":0.12656659518703836}]
[{"$f":"'DLA–Age Distribution'!B13","v":"11 to 15"},{"$f":"'DLA–Age Distribution'!C13","v":19258},0.13110044589672895]
[{"$f":"'DLA–Age Distribution'!B14","v":"16 to 17"},{"$f":"'DLA–Age Distribution'!C14","v":2705},1.8414513768337928E-2]
[{"$f":"'DLA–Age Distribution'!B15","v":"18 to 24"},{"$f":"'DLA–Age Distribution'!C15","v":1227},8.3529051363218625E-3]
[{"$f":"'DLA–Age Distribution'!B16","v":"25 to 29"},{"$f":"'DLA–Age Distribution'!C16","v":2540},1.7291262466387555E-2]
[{"$f":"'DLA–Age Distribution'!B17","v":"30 to 34"},{"$f":"'DLA–Age Distribution'!C17","v":2540},1.7291262466387555E-2]
[{"$f":"'DLA–Age Distribution'!B18","v":"35 to 39"},{"$f":"'DLA–Age Distribution'!C18","v":2366},1.6106742911603526E-2]
[{"$f":"'DLA–Age Distribution'!B19","v":"40 to 44"},{"$f":"'DLA–Age Distribution'!C19","v":2611},1.7774600905408625E-2]
[{"$f":"'DLA–Age Distribution'!B20","v":"45 to 49"},{"$f":"'DLA–Age Distribution'!C20","v":3627},2.4691105891963647E-2]
[{"$f":"'DLA–Age Distribution'!B21","v":"50 to 54"},{"$f":"'DLA–Age Distribution'!C21","v":5436},3.700602471152864E-2]
[{"$f":"'DLA–Age Distribution'!B22","v":"55 to 59"},{"$f":"'DLA–Age Distribution'!C22","v":7054},4.8020695054290477E-2]
[{"$f":"'DLA–Age Distribution'!B23","v":"60 to 64"},{"$f":"'DLA–Age Distribution'!C23","v":8158},5.5536267401885699E-2]
[{"$f":"'DLA–Age Distribution'!B24","v":"65 to 69"},{"$f":"'DLA–Age Distribution'!C24","v":9002},6.128186800095306E-2]
[{"$f":"'DLA–Age Distribution'!B25","v":"70 to 74"},{"$f":"'DLA–Age Distribution'!C25","v":18757},0.12768984648898873]
[{"$f":"'DLA–Age Distribution'!B26","v":"75 to 79"},{"$f":"'DLA–Age Distribution'!C26","v":20768},0.14137989720548691]
[{"$f":"'DLA–Age Distribution'!B27","v":"80 to 84"},{"$f":"'DLA–Age Distribution'!C27","v":12410},8.4482113073964402E-2]
[{"$f":"'DLA–Age Distribution'!B28","v":"85 to 89"},{"$f":"'DLA–Age Distribution'!C28","v":4882},3.3234623370434667E-2]
["90+",{"$f":"'DLA–Age Distribution'!C29","v":1007},6.8552367337213656E-3]
[{"$f":"'DLA–Age Distribution'!B30","v":"Unknown/Missing"},{"$f":"'DLA–Age Distribution'!C30","v":".."},{"$error":"#VALUE!"}]
[]
["Table S4 Disability Living Allowance receiving benefit by Duration of Claim - at August 2020"]
["Duration of Claim"]
["Total",{"$f":"'DLA-Time in Receipt'!C18","v":146895},1]
[{"$f":"'DLA-Time in Receipt'!B11","v":"Up to 3 months"},{"$f":"'DLA-Time in Receipt'!C11","v":1037},{"$f":"B88/B$87","v":7.0594642431668882E-3}]
[{"$f":"'DLA-Time in Receipt'!B12","v":"3 months up to 6 months"},{"$f":"'DLA-Time in Receipt'!C12","v":995},6.7735457299431569E-3]
[{"$f":"'DLA-Time in Receipt'!B13","v":"6 months up to 1 year"},{"$f":"'DLA-Time in Receipt'!C13","v":3349},2.2798597637768474E-2]
[{"$f":"'DLA-Time in Receipt'!B14","v":"1 year and up to 2 years"},{"$f":"'DLA-Time in Receipt'!C14","v":6358},4.3282616835154365E-2]
[{"$f":"'DLA-Time in Receipt'!B15","v":"2 years and up to 5 years"},{"$f":"'DLA-Time in Receipt'!C15","v":14541},9.8989073828244664E-2]
[{"$f":"'DLA-Time in Receipt'!B16","v":"5 years and over"},{"$f":"'DLA-Time in Receipt'!C16","v":120623},0.82115116239490793]
[{"$f":"'DLA-Time in Receipt'!B17","v":"Unknown"},{"$f":"'DLA-Time in Receipt'!C17","v":".."},{"$error":"#VALUE!"}]
[]
["Table S5  Disability Living Allowance by Award Type - at August 2020"]
["Care Award ",null,null,null,"Mobility Award"]
["Total ",{"$f":"'DLA-Mobility and Care Element'!F12+'DLA-Mobility and Care Element'!F13+'DLA-Mobility and Care Element'!F14","v":129113},{"$f":"B98/$B$98","v":1},null,"Total ",{"$f":"F99+F100","v":123954},{"$f":"F98/$F$98","v":1}]
[{"$f":"'DLA-Mobility and Care Element'!B12","v":"Highest Rate"},{"$f":"'DLA-Mobility and Care Element'!F12","v":41564},{"$f":"B99/$B$98","v":0.32191955883605833},null,"Higher Rate ",{"$f":"'DLA-Mobility and Care Element'!C16","v":72145},{"$f":"F99/$F$98","v":0.58203043064362581}]
[{"$f":"'DLA-Mobility and Care Element'!B13","v":"Middle Rate"},{"$f":"'DLA-Mobility and Care Element'!F13","v":59531},0.46107673123542942,null,"Lowest Rate ",{"$f":"'DLA-Mobility and Care Element'!D16","v":51809},0.41796956935637414]
[{"$f":"'DLA-Mobility and Care Element'!B14","v":"Lowest Rate"},{"$f":"'DLA-Mobility and Care Element'!F14","v":28018},0.21700370992851223]
[]
["Table S6 Disability Living Allowance claimants by Qualifying Condition Type - at August 2020"]
["Qualifying Condition "]
["Total ",{"$f":"'DLA-Qualifying Conditions'!C66","v":146895},{"$f":"B105/$B$105","v":1}]
["Learning Difficulties",30137,{"$f":"B106/$B$105","v":0.20516014840532354}]
["Arthritis",26566,{"$f":"B107/$B$105","v":0.1808502671976582}]
["*Disease Of The Muscles, Bones or Joints",6747,4.5930766874297965E-2]
["Behavioral Disorder",6186,4.2111712447666698E-2]
["Psychosis",5908,4.0219204193471525E-2]
["Neurological Diseases",5866,3.9933285680247795E-2]
["Heart Disease",5814,3.9579291330542221E-2]
["Unknown/Transfer from AA",5693,3.8755573709111951E-2]
["Psychoneurosis",5375,3.6590762108989414E-2]
["Back Pain - Other",5001,3.4044725824568571E-2]
["**Other",44082,0.30009190237925049]
[]
["AA = Attendance Allowance"]
[]
["These figures are subject to DWP's rounding techniques for disclosure control:"]
["https://www.gov.uk/government/publications/dwp-statistical-summary-policies-and-statements"]
["Totals may not sum due to rounding."]
["\"-\" indicates a nil or negligible number "]
[]
["Disability Living Allowance data is available in more detail on Stat-Xplore, where you can access data at lower geographies e.g. Local Authority, Census Output Area, Scottish and Westminster Parliamentary Constituencies:"]
["https://stat-xplore.dwp.gov.uk/webapi/jsf/login.xhtml"]
["Disability Living Allowance statistics are published as part of DWP’s benefits statistics collection: "]
["https://www.gov.uk/government/collections/dwp-statistical-summaries "]

{"sheet":"Attendance Allowance","index":27,"n_rows":113,"n_cols":6,"rows_kept":113,"cut":false,"hidden":false,"merged":[]}
["Summary Panel: Attendance Allowance claimants to August 2020"]
[]
[]
[]
[]
[]
[]
[]
[]
[]
[]
[]
[]
[]
[]
[]
[]
[]
[]
[]
[]
[]
[]
[]
[]
[]
[]
[]
[]
[]
[]
[]
[]
[]
[]
[]
[]
[]
[]
[]
[]
[]
[]
[]
[]
[]
[]
[]
["Table S1 Attendance Allowance claimants - to August 2020"]
["Payment Type",{"$f":"'AA-Entitlement time series'!G9","v":"Aug-19"},{"$f":"'AA-Entitlement time series'!H9","v":"Nov-19"},{"$f":"'AA-Entitlement time series'!I9","v":"Feb-20"},{"$f":"'AA-Entitlement time series'!J9","v":"May-20"},{"$f":"'AA-Entitlement time series'!K9","v":"Aug-20"}]
["Entitlement only",{"$f":"'AA-Entitlement time series'!G10-B52","v":20788},{"$f":"'AA-Entitlement time series'!H10-C52","v":20806},{"$f":"'AA-Entitlement time series'!I10-D52","v":19974},{"$f":"'AA-Entitlement time series'!J10-E52","v":15789},{"$f":"'AA-Entitlement time series'!K10-F52","v":16017}]
["Claimant receiving benefit",{"$f":"'AA-In payment time series'!G10","v":126987},{"$f":"'AA-In payment time series'!H10","v":127307},{"$f":"'AA-In payment time series'!I10","v":127751},{"$f":"'AA-In payment time series'!J10","v":127303},{"$f":"'AA-In payment time series'!K10","v":126291}]
["Total",{"$f":"B51+B52","v":147775},{"$f":"C51+C52","v":148113},147725,143092,142308]
[]
["Table S2 Attendance Allowance claimants receiving benefit by gender - at August 2020"]
["Gender"]
["Total",{"$f":"'AA-Gender'!C14","v":126291},1]
["Female",{"$f":"'AA-Gender'!C12","v":79096},{"$f":"B58/B57","v":0.62629957795884106}]
["Male",{"$f":"'AA-Gender'!C11","v":47196},{"$f":"B59/B57","v":0.37370834026177635}]
["Unknown",{"$f":"'CA-Gender'!C13","v":0},{"$f":"B60/B57","v":0}]
[]
["Table S3 Attendance Allowance claimants receiving benefit by Age band - at August 2020"]
["Age band"]
["Total",{"$f":"'AA–Age Distribution'!C18","v":126291},1]
[{"$f":"'AA–Age Distribution'!B11","v":"65-69"},{"$f":"'AA–Age Distribution'!C11","v":6045},{"$f":"'AA–Age Distribution'!C11/$B$64","v":4.786564363256289E-2}]
[{"$f":"'AA–Age Distribution'!B12","v":"70-74"},{"$f":"'AA–Age Distribution'!C12","v":19359},{"$f":"'AA–Age Distribution'!C12/$B$64","v":0.15328883293346318}]
[{"$f":"'AA–Age Distribution'!B13","v":"75-79"},{"$f":"'AA–Age Distribution'!C13","v":24836},{"$f":"'AA–Age Distribution'!C13/$B$64","v":0.1966569272553072}]
[{"$f":"'AA–Age Distribution'!B14","v":"80-84"},{"$f":"'AA–Age Distribution'!C14","v":31063},{"$f":"'AA–Age Distribution'!C14/$B$64","v":0.24596368704024832}]
[{"$f":"'AA–Age Distribution'!B15","v":"85-89"},{"$f":"'AA–Age Distribution'!C15","v":26807},{"$f":"'AA–Age Distribution'!C15/$B$64","v":0.21226374009232646}]
[{"$f":"'AA–Age Distribution'!B16","v":"90 and over"},{"$f":"'AA–Age Distribution'!C16","v":18182},{"$f":"'AA–Age Distribution'!C16/$B$64","v":0.14396908726670943}]
[{"$f":"'AA–Age Distribution'!B17","v":"Unknown"},{"$f":"'AA–Age Distribution'!C17","v":".."},{"$f":"'AA–Age Distribution'!C17/$B$64","v":{"$error":"#VALUE!"}}]
[]
["Table S4 Attendance Allowance claimants receiving benefit by Duration of Claim - at August 2020"]
["Duration of Claim"]
["Total",{"$f":"'AA-Time in Receipt'!C18","v":126291},1]
[{"$f":"'AA-Time in Receipt'!B11","v":"Up to 3 months"},{"$f":"'AA-Time in Receipt'!C11","v":3302},{"$f":"B76/B$75","v":2.6145964478862312E-2}]
[{"$f":"'AA-Time in Receipt'!B12","v":"3 months up to 6 months"},{"$f":"'AA-Time in Receipt'!C12","v":3043},2.4095145338939434E-2]
[{"$f":"'AA-Time in Receipt'!B13","v":"6 months up to 1 year"},{"$f":"'AA-Time in Receipt'!C13","v":10991},8.7029162806534111E-2]
[{"$f":"'AA-Time in Receipt'!B14","v":"1 year and up to 2 years"},{"$f":"'AA-Time in Receipt'!C14","v":18799},0.14885462938768401]
[{"$f":"'AA-Time in Receipt'!B15","v":"2 years and up to 5 years"},{"$f":"'AA-Time in Receipt'!C15","v":38317},0.30340245939932381]
[{"$f":"'AA-Time in Receipt'!B16","v":"5 years and over"},{"$f":"'AA-Time in Receipt'!C16","v":51831},0.41040929282371663]
[{"$f":"'AA-Time in Receipt'!B17","v":"Unknown"},{"$f":"'AA-Time in Receipt'!C17","v":".."},{"$error":"#VALUE!"}]
[]
["Table S5 Attendance Allowance claimants by Award Type - at August 2020"]
["Award Type"]
["Total",{"$f":"'AA-Mobility and Care Element'!C14","v":126291},1]
["Lower Rate",{"$f":"'AA-Mobility and Care Element'!C11","v":44215},{"$f":"B87/B86","v":0.35010412460111962}]
["Higher Rate",{"$f":"'AA-Mobility and Care Element'!C12","v":82079},{"$f":"B88/B86","v":0.64991963006073272}]
[]
["Table S6 Attendance Allowance claimants by Qualifying Condition Type - at August 2020"]
["Qualifying Condition "]
["Total ",{"$f":"'AA-Qualifying Conditions'!C66","v":126291},{"$f":"B92/$B$92","v":1}]
["Arthritis",36998,{"$f":"B93/$B$92","v":0.29295832640489028}]
["Unknown",11299,{"$f":"B94/$B$92","v":8.946797475671267E-2}]
["Dementia",9892,7.8327038347942454E-2]
["Heart Disease",9016,7.1390677087044996E-2]
["Chest Disease",8920,7.0630527907768567E-2]
["*Disease Of The Muscles, Bones or Joints",6852,5.4255647670855403E-2]
["Cerebrovascular Disease",6822,5.401810105233152E-2]
["Malignant Disease",4881,3.8648834833836139E-2]
["Back Pain - Other",4611,3.651091526712117E-2]
["Blindness",4085,3.2345931222335714E-2]
["**Other",22904,0.18135892502236897]
[]
["These figures are subject to DWP's rounding techniques for disclosure control:"]
["https://www.gov.uk/government/publications/dwp-statistical-summary-policies-and-statements"]
["Totals may not sum due to rounding."]
["\"-\" indicates a nil or negligible number "]
[]
["Attendance Allowance data is available in more detail on Stat-Xplore, where you can access data at lower geographies e.g. Local Authority, Census Output Area, Scottish and Westminster Parliamentary Constituencies:"]
["https://stat-xplore.dwp.gov.uk/webapi/jsf/login.xhtml"]
["Attendance Allowance statistics are published as part of DWP’s benefits statistics collection: "]
["https://www.gov.uk/government/collections/dwp-statistical-summaries "]

{"sheet":"Severe Disablement Allowance","index":28,"n_rows":52,"n_cols":26,"rows_kept":52,"cut":false,"hidden":false,"merged":[]}
["Summary Panel: Severe Disablement Allowance claimants to August 2020"]
[]
[]
[]
[]
[]
[]
[]
[]
[]
[]
[]
[]
[]
[]
[]
[]
[]
[]
[]
[]
["Table S1 Severe Disablement Allowance claimants - to August 2020"]
["Payment Type","Aug-14","Nov-14","Feb-15","May-15","Aug-15","Nov-15","Feb-16","May-16","Aug-16","Nov-16","Feb-17","May-17","Aug-17","Nov-17","Feb-18","May-18","Aug-18","Nov-18","Feb-19","May-19","Aug-19","Nov-19","Feb-20","May-20","Aug-20"]
["Claimant receiving benefit",18012,16577,15098,13466,11876,10627,8157,5941,4835,3989,3270,2854,2681,2524,2266,2090,2018,1955,1878,1829,1784,1728,1673,1613,1570]
[]
["Table S2 Severe Disablement Allowance by gender - at August 2020"]
["Gender"]
["Total",{"$f":"'SDA-Gender'!B11","v":1570},1]
["Female",{"$f":"'SDA-Gender'!B10","v":1285},{"$f":"B29/B28","v":0.81847133757961787}]
["Male ",{"$f":"'SDA-Gender'!B9","v":284},{"$f":"B30/B28","v":0.18089171974522292}]
["Unknown",{"$f":"'SDA-Gender'!B12","v":"-"},{"$f":"B31/B28","v":{"$error":"#VALUE!"}}]
[]
["Table S3 Severe Disablement Allowance claimants by Qualifying Condition Type - at August 2020"]
["Qualifying Condition "]
["Total ",1613,{"$f":"B35/$B$35","v":1}]
["Mental and Behavioural disorders",614,{"$f":"B36/$B$35","v":0.3806571605703658}]
["Symptoms, signs and abnormal Clinical and Laboratory findings, not elsewhere classified",347,{"$f":"B37/$B$35","v":0.21512709237445754}]
["Disease of the Musculoskeletal System and Connective Tissue",219,0.13577185368877867]
["Diseases of the Nervous System",141,8.7414755114693113E-2]
["Diseases of the Circulatory System",75,4.6497210167389953E-2]
["**Other ",170,{"$f":"B41/B35","v":0.10539367637941724}]
[]
[]
["These figures are subject to DWP's rounding techniques for disclosure control:"]
["https://www.gov.uk/government/publications/dwp-statistical-summary-policies-and-statements"]
["Totals may not sum due to rounding."]
["\"-\" indicates a nil or negligible number "]
[]
["Severe Disablement data is available in more detail on Stat-Xplore, where you can access data at lower geographies e.g. Local Authority, Census Output Area, Scottish and Westminster Parliamentary Constituencies:"]
["https://stat-xplore.dwp.gov.uk/webapi/jsf/login.xhtml"]
["Severe Disablement Allowance statistics are published as part of DWP’s benefits statistics collection: "]
["https://www.gov.uk/government/collections/dwp-statistical-summaries "]